{"text_format":"1","workbook":"xlsx","n_sheets":7,"sheets":["Read me","OrderForm","EntryForm","Technical Specificaitons","Links","Dimensions","ReferenceData"],"not_rendered":{"charts":0,"images":173,"macros":1,"external_links":0,"defined_names":9,"comments":2,"pivot_tables":1},"unopened":[],"bounds":{"document_bytes":16777216,"sheet_cells":100000,"rows_first":2000,"rows_last":500,"rows_between":2000,"halvings":0,"cell_chars":16384,"cell_head_chars":4096},"cells_cut":0,"cells_raw":0,"read":"whole","date_system":"1900"}

{"sheet":"Read me","index":0,"n_rows":56,"n_cols":2,"rows_kept":56,"cut":false,"hidden":false,"merged":[]}
[]
[null,"How to fill in the Order Form"]
[null,"Please fill in all the white fields in the Order Form--buyer's info, shipping address and arrangements, dates, instructions."]
[]
[null,"Before order confirmation, Trickit will contact you to discuss the shipment date if the one you requested can't be met."]
[]
[null,"You should use the Entry Form to select the items you would like to order. "]
[]
[null,"How to use the Entry Form"]
[null,"Please select the color and surface for each product, as well as the number of sets you want to order. If you want to order from the same product different combination of colors/surface, use the \"add [product name] row\" button to add another row for the same product. You can remove the last added by using the \"remove last\" button."]
[null,"Products for which the quantity is empty or zero will not be included in the order."]
[null,"At any time you can press the button \"Update Order\" (in the upper right corner of the Entry Form) to reflect your choices into the Order Form."]
[]
[null,"Before sending us the order, kindly make sure you have clicked on \"Update Order\" after your latest selection, so that the two forms are in sync."]
[null,"Please note that we will make our confirmation based on the items listed in the Order Form. "]
[]
[]
[null,"If Microsoft blocked macros…"]
[null,"Please note that this file contains macros. If Excel shows you a message in a pink banner"]
[null,"that there is SECURITY RISK and Microsoft has blocked macros from running,"]
[null,"please unlock the file:"]
[]
[null,"1. Open Windows File Explorer and go to the folder where you saved the file."]
[null,"2. Right-click the file and choose Properties from the context menu."]
[null,"3. At the bottom of the General tab, select the Unblock checkbox and select OK."]
[]
[]
[]
[]
[]
[]
[]
[]
[]
[]
[]
[]
[]
[]
[]
[]
[]
[]
[]
[]
[]
[]
[]
[null,"If \"Update Order\" button does not work, you may need to  Adjust Trust Center Settings "]
[null,"By default, Excel disables ActiveX controls due to security risks. You need to adjust the settings to allow them to function. "]
[null,"1. Click File > Options."]
[null,"2. In the Excel Options dialog box, select Trust Center, then click the Trust Center Settings... button."]
[null,"3. In the Trust Center, select ActiveX Settings from the left-hand menu."]
[null,"4. Select the option \"Prompt me before enabling all controls with minimal restrictions\" or, if you fully trust the source, \"Enable all controls without restrictions and without prompting\" (not recommended)."]
[null,"5. Click OK twice to save the settings."]
[null,"6. Close and reopen the Excel file for the changes to take effect. "]

{"sheet":"OrderForm","index":1,"n_rows":41,"n_cols":13,"rows_kept":41,"cut":false,"hidden":false,"merged":[[1,1,5,1],[1,3,5,4],[1,2,5,2],[12,5,12,7],[1,13,5,13],[8,5,8,6],[1,7,5,12],[1,5,5,6],[8,9,8,10],[35,6,35,8],[21,5,21,7],[0,3,0,7],[31,3,32,4],[31,5,32,12],[17,5,17,7],[20,5,20,7],[24,8,25,11],[26,8,27,12],[14,5,14,7],[15,5,15,7],[16,5,16,7],[13,5,13,7],[18,5,18,7],[19,5,19,7]]}
[null,null,null,"To select your items, please go to the Entry Form. "]
[null,null,null," ",null,"Trickit OOD\nSofia, Bulgaria\nemail: office@trickitholds.com\nhttps://www.trickitholds.com",null,"Order Form\n"]
[]
[]
[]
[]
[]
[]
[null,null,null,"Date:",null,null,null,null,"Desired shipping by date:"]
[null,null,null,"Order #: "]
[]
[null,null,null,"Billing Address:"]
[null,null,null,"Company:"]
[null,null,null,"Street:"]
[null,null,null,"City:"]
[null,null,null,"State:"]
[null,null,null,"Zip code:"]
[null,null,null,"Country:"]
[null,null,null,"Contact person:"]
[null,null,null,"Email:"]
[null,null,null,"Phone:"]
[null,null,null,"VAT/GST no."]
[]
[null,null,null,"Billing: "]
[null,null,null,"PLEASE NOTE: All prices are in GBP and are excluding VAT. "]
[null,null,null,"Shipping and import/ export charges - FOC."]
[null,null,null,"Orders to: kate.gripz@gmail.com"]
[]
[]
[]
[]
[null,null,null,"Other comments/ special instructions:"]
[]
[]
[null,null,null,"Transportation cost and any applicable discounts and taxes will be reflected in the invoice."]
[]
[]
[]
[]
[null,null,null,null,null,null,null,null,null,null," "]
[null,null,null," Friction"," Product ID"," Product","Smooth surface","Grip color","Smooth color"," UnitPrice"," Quantity"," Amount"," Weight\n (kg)"]

{"sheet":"EntryForm","index":2,"n_rows":148,"n_cols":18,"rows_kept":148,"cut":false,"hidden":false,"merged":[[135,0,136,0],[135,1,136,1],[135,2,136,2],[135,3,136,3],[135,4,136,4],[135,5,136,5],[135,6,136,6],[136,12,136,14],[75,0,76,0],[75,1,76,1],[75,2,76,2],[75,3,76,3],[75,4,76,4],[75,5,76,5],[75,6,76,6],[76,12,76,14],[99,0,100,0],[99,2,100,2],[99,4,100,4],[99,5,100,5],[99,6,100,6],[101,1,102,1],[100,12,100,14],[97,0,98,0],[81,5,82,5],[89,0,90,0],[89,1,90,1],[89,2,90,2],[89,3,90,3],[89,4,90,4],[89,5,90,5],[94,12,94,14],[95,0,96,0],[95,2,96,2],[95,4,96,4],[95,5,96,5],[95,6,96,6],[96,12,96,14],[93,0,94,0],[95,1,96,1],[93,3,94,3],[95,3,96,3],[93,5,94,5],[93,6,94,6],[93,2,94,2],[93,4,94,4],[93,1,94,1],[81,6,82,6],[49,0,50,0],[49,2,50,2],[49,3,50,3],[49,4,50,4],[59,1,60,1],[59,2,60,2],[59,3,60,3],[47,0,48,0],[47,2,48,2],[59,4,60,4],[53,0,54,0],[57,0,58,0],[57,1,58,1],[57,2,58,2],[51,0,52,0],[51,2,52,2],[51,3,52,3],[51,4,52,4],[53,2,54,2],[55,0,56,0],[53,3,54,3],[53,4,54,4],[33,0,34,0],[35,0,36,0],[37,0,38,0],[33,4,34,4],[35,4,36,4],[37,4,38,4],[33,1,34,1],[35,1,36,1],[37,1,38,1],[33,2,34,2],[33,3,34,3],[35,3,36,3],[47,3,48,3],[39,5,40,5],[39,6,40,6],[41,4,42,4],[41,5,42,5],[41,6,42,6],[47,4,48,4],[47,5,48,5],[47,6,48,6],[45,4,46,4],[39,1,40,1],[41,1,42,1],[43,1,44,1],[45,1,46,1],[39,0,40,0],[41,0,42,0],[43,0,44,0],[43,3,44,3],[39,4,40,4],[45,0,46,0],[45,2,46,2],[45,3,46,3],[0,12,0,15],[0,2,0,4],[3,4,4,4],[5,3,6,3],[7,3,8,3],[9,3,10,3],[11,3,12,3],[13,3,14,3],[15,3,16,3],[15,6,16,6],[16,12,16,14],[10,12,10,14],[12,12,12,14],[14,12,14,14],[15,5,16,5],[101,5,102,5],[101,6,102,6],[97,3,98,3],[99,3,100,3],[101,3,102,3],[13,1,14,1],[15,1,16,1],[17,1,18,1],[19,1,20,1],[21,1,22,1],[23,1,24,1],[25,1,26,1],[27,1,28,1],[15,4,16,4],[27,3,28,3],[19,2,20,2],[19,4,20,4],[63,1,64,1],[63,2,64,2],[63,3,64,3],[63,4,64,4],[63,5,64,5],[63,6,64,6],[53,1,54,1],[3,0,4,0],[4,12,4,14],[3,2,4,2],[3,5,4,5],[3,6,4,6],[6,12,6,14],[7,0,8,0],[7,2,8,2],[7,4,8,4],[7,5,8,5],[7,6,8,6],[5,0,6,0],[5,2,6,2],[5,4,6,4],[5,5,6,5],[5,6,6,6],[3,1,4,1],[5,1,6,1],[7,1,8,1],[3,3,4,3],[8,12,8,14],[9,0,10,0],[9,2,10,2],[9,4,10,4],[9,5,10,5],[9,6,10,6],[11,0,12,0],[11,2,12,2],[11,4,12,4],[11,5,12,5],[11,6,12,6],[9,1,10,1],[11,1,12,1],[24,12,24,14],[25,0,26,0],[25,2,26,2],[25,4,26,4],[25,5,26,5],[20,12,20,14],[21,0,22,0],[21,2,22,2],[21,4,22,4],[21,5,22,5],[21,6,22,6],[22,12,22,14],[21,3,22,3],[23,3,24,3],[25,3,26,3],[25,6,26,6],[26,12,26,14],[23,0,24,0],[23,2,24,2],[23,4,24,4],[23,5,24,5],[23,6,24,6],[28,12,28,14],[27,0,28,0],[27,2,28,2],[27,4,28,4],[27,5,28,5],[27,6,28,6],[13,0,14,0],[13,2,14,2],[13,4,14,4],[13,5,14,5],[13,6,14,6],[15,0,16,0],[15,2,16,2],[19,0,20,0],[19,5,20,5],[19,6,20,6],[17,3,18,3],[19,3,20,3],[18,12,18,14],[17,0,18,0],[17,2,18,2],[17,4,18,4],[17,5,18,5],[17,6,18,6],[29,0,30,0],[29,1,30,1],[29,2,30,2],[29,3,30,3],[29,4,30,4],[29,5,30,5],[29,6,30,6],[30,12,30,14],[31,0,32,0],[31,1,32,1],[31,2,32,2],[31,3,32,3],[31,4,32,4],[31,5,32,5],[31,6,32,6],[32,12,32,14],[35,2,36,2],[37,2,38,2],[39,2,40,2],[41,2,42,2],[43,2,44,2],[39,3,40,3],[41,3,42,3],[34,12,34,14],[36,12,36,14],[38,12,38,14],[43,4,44,4],[43,5,44,5],[43,6,44,6],[37,3,38,3],[33,5,34,5],[33,6,34,6],[35,5,36,5],[35,6,36,6],[37,5,38,5],[37,6,38,6],[64,12,64,14],[50,12,50,14],[60,12,60,14],[40,12,40,14],[42,12,42,14],[44,12,44,14],[46,12,46,14],[62,12,62,14],[45,5,46,5],[45,6,46,6],[52,12,52,14],[48,12,48,14],[51,6,52,6],[49,5,50,5],[49,6,50,6],[53,5,54,5],[53,6,54,6],[54,12,54,14],[59,5,60,5],[59,6,60,6],[51,5,52,5],[103,0,104,0],[103,1,104,1],[103,2,104,2],[103,3,104,3],[103,4,104,4],[103,5,104,5],[103,6,104,6],[104,12,104,14],[73,3,74,3],[73,4,74,4],[73,5,74,5],[73,6,74,6],[74,12,74,14],[97,2,98,2],[97,4,98,4],[97,5,98,5],[97,6,98,6],[102,12,102,14],[98,12,98,14],[97,1,98,1],[99,1,100,1],[101,0,102,0],[101,2,102,2],[101,4,102,4],[65,0,66,0],[65,1,66,1],[65,2,66,2],[65,3,66,3],[65,4,66,4],[71,3,72,3],[71,4,72,4],[91,3,92,3],[91,4,92,4],[91,0,92,0],[91,1,92,1],[91,2,92,2],[81,0,82,0],[81,1,82,1],[81,2,82,2],[81,3,82,3],[81,4,82,4],[73,0,74,0],[73,1,74,1],[73,2,74,2],[65,5,66,5],[65,6,66,6],[66,12,66,14],[63,0,64,0],[55,1,56,1],[55,2,56,2],[61,0,62,0],[61,1,62,1],[61,2,62,2],[61,3,62,3],[61,4,62,4],[61,5,62,5],[61,6,62,6],[59,0,60,0],[55,3,56,3],[55,4,56,4],[55,5,56,5],[55,6,56,6],[56,12,56,14],[57,3,58,3],[57,4,58,4],[57,5,58,5],[57,6,58,6],[58,12,58,14],[71,5,72,5],[71,6,72,6],[72,12,72,14],[67,0,68,0],[67,1,68,1],[67,2,68,2],[67,3,68,3],[67,4,68,4],[67,5,68,5],[67,6,68,6],[68,12,68,14],[69,0,70,0],[69,1,70,1],[69,2,70,2],[69,3,70,3],[69,4,70,4],[69,5,70,5],[69,6,70,6],[70,12,70,14],[71,0,72,0],[71,1,72,1],[71,2,72,2],[107,0,108,0],[107,1,108,1],[107,2,108,2],[107,3,108,3],[107,4,108,4],[107,5,108,5],[107,6,108,6],[108,12,108,14],[105,0,106,0],[105,1,106,1],[105,2,106,2],[105,3,106,3],[105,4,106,4],[105,5,106,5],[105,6,106,6],[106,12,106,14],[109,0,110,0],[109,1,110,1],[109,2,110,2],[109,3,110,3],[109,4,110,4],[109,5,110,5],[109,6,110,6],[110,12,110,14],[111,0,112,0],[111,1,112,1],[111,2,112,2],[111,3,112,3],[111,4,112,4],[111,5,112,5],[111,6,112,6],[112,12,112,14],[119,2,120,2],[119,3,120,3],[119,4,120,4],[119,5,120,5],[119,6,120,6],[120,12,120,14],[113,0,114,0],[113,1,114,1],[113,2,114,2],[113,3,114,3],[113,4,114,4],[113,5,114,5],[113,6,114,6],[114,12,114,14],[115,3,116,3],[115,4,116,4],[115,5,116,5],[115,6,116,6],[116,12,116,14],[127,0,128,0],[127,1,128,1],[127,2,128,2],[127,3,128,3],[127,4,128,4],[127,5,128,5],[127,6,128,6],[128,12,128,14],[121,0,122,0],[121,1,122,1],[121,2,122,2],[121,3,122,3],[121,4,122,4],[121,5,122,5],[121,6,122,6],[122,12,122,14],[77,6,78,6],[78,12,78,14],[79,0,80,0],[79,1,80,1],[79,2,80,2],[79,3,80,3],[79,4,80,4],[79,5,80,5],[79,6,80,6],[80,12,80,14],[77,0,78,0],[77,1,78,1],[77,2,78,2],[77,3,78,3],[77,4,78,4],[77,5,78,5],[82,12,82,14],[129,0,130,0],[129,1,130,1],[129,2,130,2],[129,3,130,3],[129,4,130,4],[129,5,130,5],[129,6,130,6],[130,12,130,14],[123,0,124,0],[123,1,124,1],[123,2,124,2],[123,3,124,3],[123,4,124,4],[123,5,124,5],[123,6,124,6],[124,12,124,14],[85,0,86,0],[85,1,86,1],[85,2,86,2],[85,3,86,3],[85,4,86,4],[85,5,86,5],[85,6,86,6],[86,12,86,14],[83,0,84,0],[83,1,84,1],[83,2,84,2],[83,3,84,3],[83,4,84,4],[83,5,84,5],[83,6,84,6],[84,12,84,14],[89,6,90,6],[90,12,90,14],[87,0,88,0],[87,1,88,1],[87,2,88,2],[87,3,88,3],[87,4,88,4],[87,5,88,5],[87,6,88,6],[88,12,88,14],[91,5,92,5],[91,6,92,6],[92,12,92,14],[125,0,126,0],[125,1,126,1],[125,2,126,2],[125,3,126,3],[125,4,126,4],[125,5,126,5],[125,6,126,6],[126,12,126,14],[117,0,118,0],[117,1,118,1],[117,2,118,2],[117,3,118,3],[117,4,118,4],[117,5,118,5],[117,6,118,6],[118,12,118,14],[115,0,116,0],[115,1,116,1],[115,2,116,2],[119,0,120,0],[119,1,120,1],[133,0,134,0],[133,1,134,1],[133,2,134,2],[133,3,134,3],[133,4,134,4],[133,5,134,5],[133,6,134,6],[134,12,134,14],[131,0,132,0],[131,1,132,1],[131,2,132,2],[131,3,132,3],[131,4,132,4],[131,5,132,5],[131,6,132,6],[132,12,132,14]]}
[null,null,"Entry Form",null,null,null,null,null,null,null,null,null,"After selecting items, \nclick on Update Order"]
[]
["Product ID",null,"Product","Friction","Price (excl.VAT)","Dimension\n(cm)","Weight\n/set/\n(kg)","PT_Product","PT_inventory #","PT_macros","PT_Friction","PT_UnitPrice","Smooth part surface ","Grip part surface color","Smooth part surface color","Quantity","Amount","Weight\n (kg)"]
["FGDF001",null,"Pressure S Dual\nSet of 3 fiberglass macros size S","Dual",429,"33/27/12\n36/26/10\n33/25/6",2.2000000000000002,"Pressure S",{"$f":"$A$4","v":"FGDF001"},3,"Dual",{"$f":"$E$4","v":429},"<choose surface>","<choose color>","<choose color>",0,{"$f":"$E$4*P4","v":0},{"$f":"$G$4*P4","v":0}]
[null,null,null,null,null,null,null,null,null,null,null,null,"Subtotal (Pressure S Dual)",null,null,{"$f":"SUMIF($M$4:M5,\"<>*subtotal*\",$P$4:P5)","v":0},{"$f":"SUMIF($M$4:M5,\"<>*subtotal*\",$Q$4:Q5)","v":0},{"$f":"SUMIF($M$4:M5,\"<>*subtotal*\",$R$4:R5)","v":0}]
["FGDF002",null,"Pressure M Dual\nSet of 3 fiberglass macros size М","Dual",534,"48/38/8    \n 50/45/12  \n50/35/15",5,"Pressure M",{"$f":"$A$6","v":"FGDF002"},3,"Dual",{"$f":"$E$6","v":534},"<choose surface>","<choose color>","<choose color>",0,{"$f":"$E$6*P6","v":0},{"$f":"$G$6*P6","v":0}]
[null,null,null,null,null,null,null,null,null,null,null,null,"Subtotal (Pressure M Dual)",null,null,{"$f":"SUMIF($M$6:M7,\"<>*subtotal*\",$P$6:P7)","v":0},{"$f":"SUMIF($M$6:M7,\"<>*subtotal*\",$Q$6:Q7)","v":0},{"$f":"SUMIF($M$6:M7,\"<>*subtotal*\",$R$6:R7)","v":0}]
["FGDF003",null,"Vacuum S Dual\nSet of 3 fiberglass macros size S","Dual",429,"43/27/8\n 36/32/9 \n 45/23/5",2.2000000000000002,"Vacuum S",{"$f":"$A$8","v":"FGDF003"},3,"Dual",{"$f":"$E$8","v":429},"<choose surface>","<choose color>","<choose color>",0,{"$f":"$E$8*P8","v":0},{"$f":"$G$8*P8","v":0}]
[null,null,null,null,null,null,null,null,null,null,null,null,"Subtotal (Vacuum S Dual)",null,null,{"$f":"SUMIF($M$8:M9,\"<>*subtotal*\",$P$8:P9)","v":0},{"$f":"SUMIF($M$8:M9,\"<>*subtotal*\",$Q$8:Q9)","v":0},{"$f":"SUMIF($M$8:M9,\"<>*subtotal*\",$R$8:R9)","v":0}]
["FGDF004",null,"Vacuum M Dual\nSet of 3 fiberglass macros size М","Dual",534,"54/32/9\n   53/40/11 \n  47/43/13",5,"Vacuum M",{"$f":"$A$10","v":"FGDF004"},3,"Dual",{"$f":"$E$10","v":534},"<choose surface>","<choose color>","<choose color>",0,{"$f":"$E$10*P10","v":0},{"$f":"$G$10*P10","v":0}]
[null,null,null,null,null,null,null,null,null,null,null,null,"Subtotal (Vacuum M Dual)",null,null,{"$f":"SUMIF($M$10:M11,\"<>*subtotal*\",$P$10:P11)","v":0},{"$f":"SUMIF($M$10:M11,\"<>*subtotal*\",$Q$10:Q11)","v":0},{"$f":"SUMIF($M$10:M11,\"<>*subtotal*\",$R$10:R11)","v":0}]
["FGDF005",null,"Balance S Dual\nSet of 3 fiberglass macros size S","Dual",429,"   45/33/11  \n 46/38/6\n 43/38/9",2.2000000000000002,"Balance S",{"$f":"$A$12","v":"FGDF005"},3,"Dual",{"$f":"$E$12","v":429},"<choose surface>","<choose color>","<choose color>",0,{"$f":"$E$12*P12","v":0},{"$f":"$G$12*P12","v":0}]
[null,null,null,null,null,null,null,null,null,null,null,null,"Subtotal (Balance S Dual)",null,null,{"$f":"SUMIF($M$12:M13,\"<>*subtotal*\",$P$12:P13)","v":0},{"$f":"SUMIF($M$12:M13,\"<>*subtotal*\",$Q$12:Q13)","v":0},{"$f":"SUMIF($M$12:M13,\"<>*subtotal*\",$R$12:R13)","v":0}]
["FGDF006",null,"Balance M Dual\nSet of 3 fiberglass macros size М","Dual",575,"60/40/9  \n  62/45/13\n  78/36/10",6,"Balance M",{"$f":"$A$14","v":"FGDF006"},3,"Dual",{"$f":"$E$14","v":575},"<choose surface>","<choose color>","<choose color>",0,{"$f":"$E$14*P14","v":0},{"$f":"$G$14*P14","v":0}]
[null,null,null,null,null,null,null,null,null,null,null,null,"Subtotal (Balance M Dual)",null,null,{"$f":"SUMIF($M$14:M15,\"<>*subtotal*\",$P$14:P15)","v":0},{"$f":"SUMIF($M$14:M15,\"<>*subtotal*\",$Q$14:Q15)","v":0},{"$f":"SUMIF($M$14:M15,\"<>*subtotal*\",$R$14:R15)","v":0}]
["FGDF007",null,"Orca Dual\nSet of 11 fiberglass holds  and macros different sizes","Dual",975,"---",8,"Orca",{"$f":"$A$16","v":"FGDF007"},11,"Dual",{"$f":"$E$16","v":975},"<choose surface>","<choose color>","<choose color>",0,{"$f":"$E$16*P16","v":0},{"$f":"$G$16*P16","v":0}]
[null,null,null,null,null,null,null,null,null,null,null,null,"Subtotal (Orca Dual)",null,null,{"$f":"SUMIF($M$16:M17,\"<>*subtotal*\",$P$16:P17)","v":0},{"$f":"SUMIF($M$16:M17,\"<>*subtotal*\",$Q$16:Q17)","v":0},{"$f":"SUMIF($M$16:M17,\"<>*subtotal*\",$R$16:R17)","v":0}]
["PUDF008",null,"Narwhal PU Dual\nSet of 15 PU holds and macros different sizes ","Dual",1345,"avg. ~35/25",11.5,"Narwal PU",{"$f":"$A$18","v":"PUDF008"},15,"Dual",{"$f":"$E$18","v":1345},"<choose surface>","<choose color>","<choose color>",0,{"$f":"$E$18*P18","v":0},{"$f":"$G$18*P18","v":0}]
[null,null,null,null,null,null,null,null,null,null,null,null,"Subtotal (Narwhal PU Dual)",null,null,{"$f":"SUMIF($M$18:M19,\"<>*subtotal*\",$P$18:P19)","v":0},{"$f":"SUMIF($M18:M$19,\"<>*subtotal*\",$Q18:Q$19)","v":0},{"$f":"SUMIF($M18:M$19,\"<>*subtotal*\",$R18:R$19)","v":0}]
["FGDF009",null,"Entropy Dual\nSet of 3 fiberglass macros ","Dual",534,"43/32/10\n45/34/13\n50/42/14",3.5,"Entropy",{"$f":"$A$20","v":"FGDF009"},3,"Dual",{"$f":"$E$20","v":534},"<choose surface>","<choose color>","<choose color>",0,{"$f":"$E$20*P20","v":0},{"$f":"$G$20*P20","v":0}]
[null,null,null,null,null,null,null,null,null,null,null,null,"Subtotal (Entropy Dual)",null,null,{"$f":"SUMIF($M$20:M21,\"<>*subtotal*\",$P$20:P21)","v":0},{"$f":"SUMIF($M$20:M21,\"<>*subtotal*\",$Q$20:Q21)","v":0},{"$f":"SUMIF($M$20:M21,\"<>*subtotal*\",$R$20:R21)","v":0}]
["FGDF010",null,"Pulsar Dual\nSet of 3 fiberglass macros ","Dual",534,"55/36/9\n48/34/11\n47/38/12",4,"Pulsar",{"$f":"$A$22","v":"FGDF010"},3,"Dual",{"$f":"$E$22","v":534},"<choose surface>","<choose color>","<choose color>",0,{"$f":"$E$22*P22","v":0},{"$f":"$G$22*P22","v":0}]
[null,null,null,null,null,null,null,null,null,null,null,null,"Subtotal (Pulsar Dual)",null,null,{"$f":"SUMIF($M$22:M23,\"<>*subtotal*\",$P$22:P23)","v":0},{"$f":"SUMIF($M$22:M23,\"<>*subtotal*\",$Q$22:Q23)","v":0},{"$f":"SUMIF($M$22:M23,\"<>*subtotal*\",$R$22:R23)","v":0}]
["FGDF011",null,"Nebula Dual\nSet of 3 fiberglass macros ","Dual",534,"56/33/10\n57/36/13\n56/35/16",4.7,"Nebula",{"$f":"$A$24","v":"FGDF011"},3,"Dual",{"$f":"$E$24","v":534},"<choose surface>","<choose color>","<choose color>",0,{"$f":"$E$24*P24","v":0},{"$f":"$G$24*P24","v":0}]
[null,null,null,null,null,null,null,null,null,null,null,null,"Subtotal (Nebula Dual)",null,null,{"$f":"SUMIF($M$24:M25,\"<>*subtotal*\",$P$24:P25)","v":0},{"$f":"SUMIF($M$24:M25,\"<>*subtotal*\",$Q$24:Q25)","v":0},{"$f":"SUMIF($M$24:M25,\"<>*subtotal*\",$R$24:R25)","v":0}]
["FGDF012",null,"Quantium Dual\nSet of 3 fiberglass macros ","Dual",534,"55/28/13\n61/29/13\n56/28/9",3.9,"Quantium",{"$f":"$A$26","v":"FGDF012"},3,"Dual",{"$f":"$E$26","v":534},"<choose surface>","<choose color>","<choose color>",0,{"$f":"$E$26*P26","v":0},{"$f":"$G$26*P26","v":0}]
[null,null,null,null,null,null,null,null,null,null,null,null,"Subtotal (Quantium Dual)",null,null,{"$f":"SUMIF($M$26:M27,\"<>*subtotal*\",$P$26:P27)","v":0},{"$f":"SUMIF($M$26:M27,\"<>*subtotal*\",$Q$26:Q27)","v":0},{"$f":"SUMIF($M$26:M27,\"<>*subtotal*\",$R$26:R27)","v":0}]
["FGDF013",null,"Axiom Dual\nSet of 3 fiberglass macros ","Dual",579,"65/35/11\n70/37/11\n68/39/13",5.3,"Axiom",{"$f":"$A$28","v":"FGDF013"},3,"Dual",{"$f":"$E$28","v":579},"<choose surface>","<choose color>","<choose color>",0,{"$f":"$E$28*P28","v":0},{"$f":"$G$28*P28","v":0}]
[null,null,null,null,null,null,null,null,null,null,null,null,"Subtotal (Axiom Dual)",null,null,{"$f":"SUMIF($M$28:M29,\"<>*subtotal*\",$P$28:P29)","v":0},{"$f":"SUMIF($M$28:M29,\"<>*subtotal*\",$Q$28:Q29)","v":0},{"$f":"SUMIF($M$28:M29,\"<>*subtotal*\",$R$28:R29)","v":0}]
["FGDF015",null,"Planet 1a L Dual\n Fiberglass macro size L","Dual",285,"d=60 h=21",2.6,"Planet 1a L",{"$f":"$A$30","v":"FGDF015"},1,{"$f":"D30","v":"Dual"},{"$f":"$E$30","v":285},"<choose surface>","<choose color>","<choose color>",0,{"$f":"$E$30*P30","v":0},{"$f":"$G$30*P30","v":0}]
[null,null,null,null,null,null,null,null,null,null,null,null,"Subtotal (Planet 1a L Dual)",null,null,{"$f":"SUMIF($M$30:M31,\"<>*subtotal*\",$P$30:P31)","v":0},{"$f":"SUMIF($M$30:M31,\"<>*subtotal*\",$Q$30:Q31)","v":0},{"$f":"SUMIF($M$30:M31,\"<>*subtotal*\",$R$30:R31)","v":0}]
["FGDF016",null,"Planet 1b L Dual\n Fiberglass macro size L","Dual",285,"d=60 h=21",2.6,"Planet 1b L",{"$f":"$A$32","v":"FGDF016"},1,"Dual",{"$f":"$E$32","v":285},"<choose surface>","<choose color>","<choose color>",0,{"$f":"$E$32*P32","v":0},{"$f":"$G$32*P32","v":0}]
[null,null,null,null,null,null,null,null,null,null,null,null,"Subtotal (Planet 1b L Dual)",null,null,{"$f":"SUMIF($M$32:M33,\"<>*subtotal*\",$P$32:P33)","v":0},{"$f":"SUMIF($M$32:M33,\"<>*subtotal*\",$Q$32:Q33)","v":0},{"$f":"SUMIF($M$32:M33,\"<>*subtotal*\",$R$32:R33)","v":0}]
["FGDF017",null,"Planet 1 L Dual\nSet of 2 fiberglass macros:\n1a and 1b; size L","Dual",560,"d=60 h=21\nd=60 h=21",5.2,"Planet 1 L ",{"$f":"$A$34","v":"FGDF017"},1,"Dual",{"$f":"$E$34","v":560},"<choose surface>","<choose color>","<choose color>",0,{"$f":"$E$34*P34","v":0},{"$f":"$G$34*P34","v":0}]
[null,null,null,null,null,null,null,null,null,null,null,null,"Subtotal (Planet 1 L Dual)",null,null,{"$f":"SUMIF($M$34:M35,\"<>*subtotal*\",$P$34:P35)","v":0},{"$f":"SUMIF($M$34:M35,\"<>*subtotal*\",$Q$34:Q35)","v":0},{"$f":"SUMIF($M$34:M35,\"<>*subtotal*\",$R$34:R35)","v":0}]
["FGDF018",null,"Planet 2 L Dual\n Fiberglass macro size L","Dual",295,"d=60 h=25",2.7,"Planet 2 L",{"$f":"$A$36","v":"FGDF018"},1,"Dual",{"$f":"$E$36","v":295},"<choose surface>","<choose color>","<choose color>",0,{"$f":"$E$36*P36","v":0},{"$f":"$G$36*P36","v":0}]
[null,null,null,null,null,null,null,null,null,null,null,null,"Subtotal (Planet 2 L Dual)",null,null,{"$f":"SUMIF($M$36:M37,\"<>*subtotal*\",$P$36:P37)","v":0},{"$f":"SUMIF($M$36:M37,\"<>*subtotal*\",$Q$36:Q37)","v":0},{"$f":"SUMIF($M$36:M37,\"<>*subtotal*\",$R$36:R37)","v":0}]
["FGDF019",null,"Planet 3 L Dual\n Fiberglass macro size L","Dual",285,"d=60 h=21",2.8,"Planet 3 L",{"$f":"$A$38","v":"FGDF019"},1,"Dual",{"$f":"$E$38","v":285},"<choose surface>","<choose color>","<choose color>",0,{"$f":"$E$38*P38","v":0},{"$f":"$G$38*P38","v":0}]
[null,null,null,null,null,null,null,null,null,null,null,null,"Subtotal (Planet 3 L Dual)",null,null,{"$f":"SUMIF($M$38:M39,\"<>*subtotal*\",$P$38:P39)","v":0},{"$f":"SUMIF($M$38:M39,\"<>*subtotal*\",$Q$38:Q39)","v":0},{"$f":"SUMIF($M$38:M39,\"<>*subtotal*\",$R$38:R39)","v":0}]
["FGDF020",null,"Planet 4 L Dual\n Fiberglass macro size L","Dual",275,"d=60 h=15",2.5,"Planet 4 L",{"$f":"$A$40","v":"FGDF020"},1,"Dual",{"$f":"$E$40","v":275},"<choose surface>","<choose color>","<choose color>",0,{"$f":"$E$40*P40","v":0},{"$f":"$G$40*P40","v":0}]
[null,null,null,null,null,null,null,null,null,null,null,null,"Subtotal (Planet 4 L Dual)",null,null,{"$f":"SUMIF($M$40:M41,\"<>*subtotal*\",$P$40:P41)","v":0},{"$f":"SUMIF($M$40:M41,\"<>*subtotal*\",$Q$40:Q41)","v":0},{"$f":"SUMIF($M$40:M41,\"<>*subtotal*\",$R$40:R41)","v":0}]
["FGDF021",null,"Planet 5 L Dual\n Fiberglass macro size L","Dual",275,"d=60 h=15",2.7,"Planet 5 L",{"$f":"$A$42","v":"FGDF021"},1,"Dual",{"$f":"$E$42","v":275},"<choose surface>","<choose color>","<choose color>",0,{"$f":"$E$42*P42","v":0},{"$f":"$G$42*P42","v":0}]
[null,null,null,null,null,null,null,null,null,null,null,null,"Subtotal (Planet 5 L Dual)",null,null,{"$f":"SUMIF($M$42:M43,\"<>*subtotal*\",$P$42:P43)","v":0},{"$f":"SUMIF($M$42:M43,\"<>*subtotal*\",$Q$42:Q43)","v":0},{"$f":"SUMIF($M$42:M43,\"<>*subtotal*\",$R$42:R43)","v":0}]
["FGDF022",null,"Planet 6 L Dual\n Fiberglass macro size L","Dual",285,"d=60 h=21",2.75,"Planet 6 L",{"$f":"$A$44","v":"FGDF022"},1,"Dual",{"$f":"$E$44","v":285},"<choose surface>","<choose color>","<choose color>",0,{"$f":"$E$44*P44","v":0},{"$f":"$G$44*P44","v":0}]
[null,null,null,null,null,null,null,null,null,null,null,null,"Subtotal (Planet 6 L Dual)",null,null,{"$f":"SUMIF($M$44:M45,\"<>*subtotal*\",$P$44:P45)","v":0},{"$f":"SUMIF($M$44:M45,\"<>*subtotal*\",$Q$44:Q45)","v":0},{"$f":"SUMIF($M$44:M45,\"<>*subtotal*\",$R$44:R45)","v":0}]
["FGDF023",null,"Planet L (full set) Dual\nSet of 7 fiberglass macros size L-XL","Dual",1895,"d=60\nh=15 to 25",{"$f":"G34+G36+G38+G40+G42+G44","v":18.649999999999999},"Planet L (full set)",{"$f":"$A$46","v":"FGDF023"},7,"Dual",{"$f":"$E$46","v":1895},"<choose surface>","<choose color>","<choose color>",0,{"$f":"$E$46*P46","v":0},{"$f":"$G$46*P46","v":0}]
[null,null,null,null,null,null,null,null,null,null,null,null,"Subtotal (Planet L full set Dual)",null,null,{"$f":"SUMIF($M$46:M47,\"<>*subtotal*\",$P$46:P47)","v":0},{"$f":"SUMIF($M$46:M47,\"<>*subtotal*\",$Q$46:Q47)","v":0},{"$f":"SUMIF($M$46:M47,\"<>*subtotal*\",$R$46:R47)","v":0}]
["FGDF024",null,"Planet S (full set) Dual\nSet of 8 fiberglass macros size XS-S\n(not sold separately)","Dual",595,"8 sizes:\nd=16 to 28\nh=4 to 10",2.95,"Planet S (full set)",{"$f":"$A$48","v":"FGDF024"},8,"Dual",{"$f":"$E$48","v":595},"<choose surface>","<choose color>","<choose color>",0,{"$f":"$E$48*P48","v":0},{"$f":"$G$48*P48","v":0}]
[null,null,null,null,null,null,null,null,null,null,null,null,"Subtotal (Planet S full set Dual)",null,null,{"$f":"SUMIF($M$48:M49,\"<>*subtotal*\",$P$48:P49)","v":0},{"$f":"SUMIF($M$48:M49,\"<>*subtotal*\",$Q$48:Q49)","v":0},{"$f":"SUMIF($M$48:M49,\"<>*subtotal*\",$R$48:R49)","v":0}]
["FGDF025",null,"Planet S&L (full set) Dual\nSet of 15 fiberglass macros size XS-XL","Dual",2480,"see sizes for sets S and L",21.6,"Planet S&L",{"$f":"$A$50","v":"FGDF025"},15,"Dual",{"$f":"$E$50","v":2480},"MATTE","<choose color>","<choose color>",0,{"$f":"$E$50*P50","v":0},{"$f":"$G$50*P50","v":0}]
[null,null,null,null,null,null,null,null,null,null,null,null,"Subtotal (Planet S&L Dual)",null,null,{"$f":"SUMIF($M$50:M51,\"<>*subtotal*\",$P$50:P51)","v":0},{"$f":"SUMIF($M$50:M51,\"<>*subtotal*\",$Q$50:Q51)","v":0},{"$f":"SUMIF($M$50:M51,\"<>*subtotal*\",$R$50:R51)","v":0}]
["FGDF050",null,"Planet S Drops Dual NEW!\nSet of 8 fiberglass holds size S","Dual",595,"8 sizes:\nd=16 to 28\nh=4 to 10",3,"Planet S Drops",{"$f":"$A$52","v":"FGDF050"},15,"Dual",{"$f":"$E$52","v":595},"GLOSSY","White RAL 9016","<choose color>",0,{"$f":"$E$52*P52","v":0},{"$f":"$G$52*P52","v":0}]
[null,null,null,null,null,null,null,null,null,null,null,null,"Subtotal (Planet S Drops Dual)",null,null,{"$f":"SUMIF($M$52:M53,\"<>*subtotal*\",$P$52:P53)","v":0},{"$f":"SUMIF($M$52:M53,\"<>*subtotal*\",$Q$52:Q53)","v":0},{"$f":"SUMIF($M$52:M53,\"<>*subtotal*\",$R$52:R53)","v":0}]
["FGDF026",null,"Leaves Dual DISCONTINUED!\nSet of 21 fiberglass macros size XXS-XL","Dual",1727,"21 different sizes",14,"Leaves",{"$f":"$A$54","v":"FGDF026"},21,"Dual",{"$f":"$E$54","v":1727},"<choose surface>","<choose color>","<choose color>",0,{"$f":"$E$54*P54","v":0},{"$f":"$G$54*P54","v":0}]
[null,null,null,null,null,null,null,null,null,null,null,null,"Subtotal (Leaves Dual)",null,null,{"$f":"SUMIF($M$54:M55,\"<>*subtotal*\",$P$54:P55)","v":0},{"$f":"SUMIF($M$54:M55,\"<>*subtotal*\",$Q$54:Q55)","v":0},{"$f":"SUMIF($M$54:M55,\"<>*subtotal*\",$R$54:R55)","v":0}]
["FGDF027",null,"Gambit (full set) Dual\nSet of 15 fiberglass macros size S-M","Dual",995,"d=48\nh=4 to 12",12,"Gambit full set",{"$f":"$A$56","v":"FGDF027"},15,"Dual",{"$f":"$E$56","v":995},"<choose surface>","<choose color>","<choose color>",0,{"$f":"$E$56*P56","v":0},{"$f":"$G$56*P56","v":0}]
[null,null,null,null,null,null,null,null,null,null,null,null,"Subtotal (Gambit (full set) Dual)",null,null,{"$f":"SUMIF($M$56:M57,\"<>*subtotal*\",$P$56:P57)","v":0},{"$f":"SUMIF($M$56:M57,\"<>*subtotal*\",$Q$56:Q57)","v":0},{"$f":"SUMIF($M$56:M57,\"<>*subtotal*\",$R$56:R57)","v":0}]
["FGDF028",null,"Gambit h=4 Dual\nSet of 5 fiberglass macros size S-M; h=4cm","Dual",335,"d=48\nh=4",3,"Gambit h=4",{"$f":"$A$58","v":"FGDF028"},5,"Dual",{"$f":"$E$58","v":335},"<choose surface>","<choose color>","<choose color>",0,{"$f":"$E$58*P58","v":0},{"$f":"$G$58*P58","v":0}]
[null,null,null,null,null,null,null,null,null,null,null,null,"Subtotal (Gambit h=4 Dual)",null,null,{"$f":"SUMIF($M$58:M59,\"<>*subtotal*\",$P$58:P59)","v":0},{"$f":"SUMIF($M$58:M59,\"<>*subtotal*\",$Q$58:Q59)","v":0},{"$f":"SUMIF($M$58:M59,\"<>*subtotal*\",$R$58:R59)","v":0}]
["FGDF029",null,"Gambit h=7 Dual\nSet of 5 fiberglass macros size S-M; h=7cm","Dual",355,"d=48\nh=7",4,"Gambit h=7",{"$f":"$A$60","v":"FGDF029"},5,"Dual",{"$f":"$E$60","v":355},"<choose surface>","<choose color>","<choose color>",0,{"$f":"$E$60*P60","v":0},{"$f":"$G$60*P60","v":0}]
[null,null,null,null,null,null,null,null,null,null,null,null,"Subtotal (Gambit h=7 Dual)",null,null,{"$f":"SUMIF($M$60:M61,\"<>*subtotal*\",$P$60:P61)","v":0},{"$f":"SUMIF($M$60:M61,\"<>*subtotal*\",$Q$60:Q61)","v":0},{"$f":"SUMIF($M$60:M61,\"<>*subtotal*\",$R$60:R61)","v":0}]
["FGDF030",null,"Gambit h=12 Dual\nSet of 5 fiberglass macros size S-M; h=12cm","Dual",375,"d=48\nh=12",5,"Gambit h=12",{"$f":"$A$62","v":"FGDF030"},5,"Dual",{"$f":"$E$62","v":375},"<choose surface>","<choose color>","<choose color>",0,{"$f":"$E$62*P62","v":0},{"$f":"$G$62*P62","v":0}]
[null,null,null,null,null,null,null,null,null,null,null,null,"Subtotal (Gambit h=12 Dual)",null,null,{"$f":"SUMIF($M$62:M63,\"<>*subtotal*\",$P$62:P63)","v":0},{"$f":"SUMIF($M$62:M63,\"<>*subtotal*\",$Q$62:Q63)","v":0},{"$f":"SUMIF($M$62:M63,\"<>*subtotal*\",$R$62:R63)","v":0}]
["TFDF031",null,"Ventus Dual\nSet of 6 thermoformed macros size S-L","Dual",597,"L  40 to 80\nW 14 to 25",4.75,"Ventus",{"$f":"$A$64","v":"TFDF031"},6,"Dual",{"$f":"$E$64","v":597},"<choose surface>","<choose color>","<choose color>",0,{"$f":"$E$64*P64","v":0},{"$f":"$G$64*P64","v":0}]
[null,null,null,null,null,null,null,null,null,null,null,null,"Subtotal (Ventus Dual)",null,null,{"$f":"SUMIF($M$64:M65,\"<>*subtotal*\",$P$64:P65)","v":0},{"$f":"SUMIF($M$64:M65,\"<>*subtotal*\",$Q$64:Q65)","v":0},{"$f":"SUMIF($M$64:M65,\"<>*subtotal*\",$R$64:R65)","v":0}]
["FGDF033",null,"Sahara XL Dual NEW!\nSet of 2 fiberglass macros size XL","Dual",430,"L  75 to 77\nW 38.5 to 39\nH 11 to 16",3.7,"Sahara XL",{"$f":"$A$66","v":"FGDF033"},2,"Dual",{"$f":"$E$66","v":430},"<choose surface>","<choose color>","<choose color>",0,{"$f":"$E$66*P66","v":0},{"$f":"$G$66*P66","v":0}]
[null,null,null,null,null,null,null,null,null,null,null,null,"Subtotal (Sahara XL Dual)",null,null,{"$f":"SUMIF($M$66:M67,\"<>*subtotal*\",$P$66:P67)","v":0},{"$f":"SUMIF($M$66:M67,\"<>*subtotal*\",$Q$66:Q67)","v":0},{"$f":"SUMIF($M$66:M67,\"<>*subtotal*\",$R$66:R67)","v":0}]
["FGDF034",null,"Sahara L Dual NEW!\nSet of 4 fiberglass macros size L","Dual",770,"L  60.5 to 63\nW 31 to 33\nH 8.5 to 9",4.5,"Sahara L",{"$f":"$A$68","v":"FGDF034"},4,"Dual",{"$f":"$E$68","v":770},"<choose surface>","<choose color>","<choose color>",0,{"$f":"$E$68*P68","v":0},{"$f":"$G$68*P68","v":0}]
[null,null,null,null,null,null,null,null,null,null,null,null,"Subtotal (Sahara L Dual)",null,null,{"$f":"SUMIF($M$68:M69,\"<>*subtotal*\",$P$68:P69)","v":0},{"$f":"SUMIF($M$6:M69,\"<>*subtotal*\",$Q$68:Q69)","v":0},{"$f":"SUMIF($M$68:M69,\"<>*subtotal*\",$R$68:R69)","v":0}]
["FGDF035",null,"Sahara M Dual NEW!\nSet of 6 fiberglass macros size M","Dual",890,"L  44 to 46.5\nW 26 to 27\nH 7 to 9.5",4,"Sahara M",{"$f":"$A$70","v":"FGDF035"},6,"Dual",{"$f":"$E$70","v":890},"<choose surface>","<choose color>","<choose color>",0,{"$f":"$E$70*P70","v":0},{"$f":"$G$70*P70","v":0}]
[null,null,null,null,null,null,null,null,null,null,null,null,"Subtotal (Sahara M Dual)",null,null,{"$f":"SUMIF($M$70:M71,\"<>*subtotal*\",$P$70:P71)","v":0},{"$f":"SUMIF($M70:M$71,\"<>*subtotal*\",$Q$70:Q71)","v":0},{"$f":"SUMIF($M$70:M71,\"<>*subtotal*\",$R$70:R71)","v":0}]
["FGDF036",null,"Sahara S Dual NEW!\nSet of 8 fiberglass macros size S","Dual",640,"L  23 to 29\nW 13 to 17\nH 4 to 6.5",2.15,"Sahara S",{"$f":"$A$72","v":"FGDF036"},8,"Dual",{"$f":"$E$72","v":640},"<choose surface>","<choose color>","<choose color>",0,{"$f":"$E$72*P72","v":0},{"$f":"$G$72*P72","v":0}]
[null,null,null,null,null,null,null,null,null,null,null,null,"Subtotal (Sahara S Dual)",null,null,{"$f":"SUMIF($M$72:M73,\"<>*subtotal*\",$P$72:P73)","v":0},{"$f":"SUMIF($M$72:M73,\"<>*subtotal*\",$Q$72:Q73)","v":0},{"$f":"SUMIF($M$72:M73,\"<>*subtotal*\",$R$72:R73)","v":0}]
["FGDF037",null,"Sahara XS Dual NEW!\nSet of 10 fiberglass macros size XS","Dual",450,"L  15 to 17\nW 10 to 10.5\nH 3 to 4",1.25,"Sahara XS",{"$f":"$A$74","v":"FGDF037"},10,"Dual",{"$f":"$E$74","v":450},"<choose surface>","<choose color>","<choose color>",0,{"$f":"$E$74*P74","v":0},{"$f":"$G$74*P74","v":0}]
[null,null,null,null,null,null,null,null,null,null,null,null,"Subtotal (Sahara XS Dual)",null,null,{"$f":"SUMIF($M$74:M75,\"<>*subtotal*\",$P$74:P75)","v":0},{"$f":"SUMIF($M$74:M75,\"<>*subtotal*\",$Q$74:Q75)","v":0},{"$f":"SUMIF($M$74:M75,\"<>*subtotal*\",$R$74:R75)","v":0}]
["PEDF047",null,"Sahara full set Dual NEW!\nSet of 44, fiberglass size XS-XL \n& PE holds size XXS *","Dual",2850,"various sizes",15.6,"Sahara full set",{"$f":"$A$76","v":"PEDF047"},44,"Dual",{"$f":"$E76","v":2850},"<choose surface>","<choose color>","<choose color>",0,{"$f":"$E$76*P76","v":0},{"$f":"$G$76*P76","v":0}]
[null,null,null,null,null,null,null,null,null,null,null,null,"Subtotal (Sahara full set)",null,null,{"$f":"SUMIF($M$76:M77,\"<>*subtotal*\",$P$76:P77)","v":0},{"$f":"SUMIF($M$76:M77,\"<>*subtotal*\",$Q$76:Q77)","v":0},{"$f":"SUMIF($M$76:N77,\"<>*subtotal*\",$R$76:R77)","v":0}]
["TFDF039",null,"Atacama Dual NEW!\nSet of 4 thermoformed macros","Dual",774,"L  69 to 72\nW 33.5 to 34\nH 14 to 15",5.3,"Atacama",{"$f":"$A$78","v":"TFDF039"},4,"Dual",{"$f":"$E$78","v":774},"<choose surface>","<choose color>","<choose color>",0,{"$f":"ROUND((1+IF(O78=\"Transparent Thermoformed\",ReferenceData!$T$1%,0))*$E$78*P78,0)","v":0},{"$f":"$G$78*P78","v":0}]
[null,null,null,null,null,null,null,null,null,null,null,null,"Subtotal (Atacama Dual)",null,null,{"$f":"SUMIF($M78:M$79,\"<>*subtotal*\",$P78:P$79)","v":0},{"$f":"SUMIF($M78:M$79,\"<>*subtotal*\",$Q78:Q$79)","v":0},{"$f":"SUMIF($M78:M$79,\"<>*subtotal*\",$R78:R$79)","v":0}]
["TFDF040",null,"Gobi Dual NEW!\nSet of 4 thermoformed macros","Dual",785,"L  68 to 71\nW 48 to 50\nH 12 to 15",6,"Gobi",{"$f":"$A$80","v":"TFDF040"},4,"Dual",{"$f":"$E$80","v":785},"<choose surface>","<choose color>","<choose color>",0,{"$f":"ROUND((1+IF(O80=\"Transparent Thermoformed\",ReferenceData!$T$1%,0))*$E$80*P80,0)","v":0},{"$f":"$G$80*P80","v":0}]
[null,null,null,null,null,null,null,null,null,null,null,null,"Subtotal (Gobi Dual)",null,null,{"$f":"SUMIF($M$80:M81,\"<>*subtotal*\",$P$80:P81)","v":0},{"$f":"SUMIF($M$80:M81,\"<>*subtotal*\",$Q$80:Q81)","v":0},{"$f":"SUMIF($M$80:M81,\"<>*subtotal*\",$R$80:R81)","v":0}]
["TFDF041",null,"Namib Dual NEW!\nSet of 4 thermoformed macros","Dual",780,"L  57.5 to 67\nW 49 to 51.5\nH 14 to 16",5.2,"Namib",{"$f":"$A$82","v":"TFDF041"},4,"Dual",{"$f":"$E$82","v":780},"<choose surface>","<choose color>","<choose color>",0,{"$f":"ROUND((1+IF(O82=\"Transparent Thermoformed\",ReferenceData!$T$1%,0))*$E$82*P82,0)","v":0},{"$f":"$G$82*P82","v":0}]
[null,null,null,null,null,null,null,null,null,null,null,null,"Subtotal (Namib Dual)",null,null,{"$f":"SUMIF($M$82:M83,\"<>*subtotal*\",$P$82:P83)","v":0},{"$f":"SUMIF($M$82:M83,\"<>*subtotal*\",$Q$82:Q83)","v":0},{"$f":"SUMIF($M$82:M83,\"<>*subtotal*\",$R$82:R83)","v":0}]
["TFDF042",null,"Mojave Dual NEW!\nSet of 4 thermoformed macros","Dual",770,"L  67.5 to 72\nW 31.5 to 34.5\nH 9.5 to 15.5",4.75,"Mojave",{"$f":"$A$84","v":"TFDF042"},4,"Dual",{"$f":"$E$84","v":770},"<choose surface>","<choose color>","<choose color>",0,{"$f":"ROUND((1+IF(O8=\"Transparent Thermoformed\",ReferenceData!$T$1%,0))*$E$84*P84,0)","v":0},{"$f":"$G$84*P84","v":0}]
[null,null,null,null,null,null,null,null,null,null,null,null,"Subtotal (Mojave Dual)",null,null,{"$f":"SUMIF($M$84:M85,\"<>*subtotal*\",$P$84:P85)","v":0},{"$f":"SUMIF($M$84:M85,\"<>*subtotal*\",$Q$84:Q85)","v":0},{"$f":"SUMIF($M$84:M85,\"<>*subtotal*\",$R$84:R85)","v":0}]
["TFDF043",null,"Atacama S Dual NEW!\nSet of 4 thermoformed macros","Dual",429,"L  49 to 52\nW 24 to 27\nH 9.5 to 12",2.8,"Atacama S",{"$f":"$A$86","v":"TFDF043"},4,"Dual",{"$f":"$E$86","v":429},"<choose surface>","<choose color>","<choose color>",0,{"$f":"ROUND((1+IF(O86=\"Transparent Thermoformed\",ReferenceData!$T$1%,0))*$E$86*P86,0)","v":0},{"$f":"$G$86*P86","v":0}]
[null,null,null,null,null,null,null,null,null,null,null,null,"Subtotal (Atacama S Dual)",null,null,{"$f":"SUMIF($M$86:M87,\"<>*subtotal*\",$P$86:P87)","v":0},{"$f":"SUMIF($M$86:M87,\"<>*subtotal*\",$Q$86:Q87)","v":0},{"$f":"SUMIF($M$86:M87,\"<>*subtotal*\",$R$86:R87)","v":0}]
["TFDF044",null,"Gobi S Dual NEW!\nSet of 4 thermoformed macros","Dual",432,"L  34 to 39\nW 30 to 32\nH 8.5 to 11",2.5,"Gobi S",{"$f":"$A$88","v":"TFDF044"},4,"Dual",{"$f":"$E$88","v":432},"<choose surface>","<choose color>","<choose color>",0,{"$f":"ROUND((1+IF(O88=\"Transparent Thermoformed\",ReferenceData!$T$1%,0))*$E$88*P88,0)","v":0},{"$f":"$G$88*P88","v":0}]
[null,null,null,null,null,null,null,null,null,null,null,null,"Subtotal (Gobi S Dual)",null,null,{"$f":"SUMIF($M$88:M89,\"<>*subtotal*\",$P$88:P89)","v":0},{"$f":"SUMIF($M$88:M89,\"<>*subtotal*\",$Q$88:Q89)","v":0},{"$f":"SUMIF($M$88:M89,\"<>*subtotal*\",$R$88:R89)","v":0}]
["TFDF045",null,"Namib S Dual NEW!\nSet of 4 thermoformed macros","Dual",432,"L  33 to 36\nW 28 to 30.5\nH 11 to 12.5",2.4,"Namib S",{"$f":"$A$90","v":"TFDF045"},4,"Dual",{"$f":"$E$90","v":432},"<choose surface>","<choose color>","<choose color>",0,{"$f":"ROUND((1+IF(O90=\"Transparent Thermoformed\",ReferenceData!$T$1%,0))*$E$90*P90,0)","v":0},{"$f":"$G$90*P90","v":0}]
[null,null,null,null,null,null,null,null,null,null,null,null,"Subtotal (Namib S Dual)",null,null,{"$f":"SUMIF($M$90:M91,\"<>*subtotal*\",$P$90:P91)","v":0},{"$f":"SUMIF($M$90:M91,\"<>*subtotal*\",$Q$90:Q91)","v":0},{"$f":"SUMIF($M$90:M91,\"<>*subtotal*\",$R$90:R91)","v":0}]
["TFDF046",null,"Mojave S Dual NEW!\nSet of 4 thermoformed macros","Dual",428,"L  52 to 56.5\nW 22 to 30\nH 8 to 12",2.65,"Mojave S",{"$f":"$A$92","v":"TFDF046"},4,"Dual",{"$f":"$E$92","v":428},"<choose surface>","<choose color>","<choose color>",0,{"$f":"ROUND((1+IF(O92=\"Transparent Thermoformed\",ReferenceData!$T$1%,0))*$E$92*P92,0)","v":0},{"$f":"$G$92*P92","v":0}]
[null,null,null,null,null,null,null,null,null,null,null,null,"Subtotal (Mojave S Dual)",null,null,{"$f":"SUMIF($M$92:M93,\"<>*subtotal*\",$P$92:P93)","v":0},{"$f":"SUMIF($M$92:M93,\"<>*subtotal*\",$Q$92:Q93)","v":0},{"$f":"SUMIF($M$92:M93,\"<>*subtotal*\",$R$92:R93)","v":0}]
["FGFF009",null,"Entropy Full Friction\nSet of 3 fiberglass macros ","Full Friction",420,"43/32/10\n45/34/13\n50/42/14",3.5,"Entropy",{"$f":"$A$94","v":"FGFF009"},3,"Full Friction",{"$f":"$E$94","v":420},"n.a","<choose color>","n.a",0,{"$f":"$E$94*P94","v":0},{"$f":"$G$94*P94","v":0}]
[null,null,null,null,null,null,null,null,null,null,null,null,"Subtotal (Entropy Full Friction)",null,null,{"$f":"SUMIF($M$94:M95,\"<>*subtotal*\",$P$94:P95)","v":0},{"$f":"SUMIF($M$94:M95,\"<>*subtotal*\",$Q$94:Q95)","v":0},{"$f":"SUMIF($M$94:M95,\"<>*subtotal*\",$R$94:R95)","v":0}]
["FGFF010",null,"Pulsar Full Friction\nSet of 3 fiberglass macros ","Full Friction",420,"55/36/9\n48/34/11\n47/38/12",4,"Pulsar",{"$f":"$A$96","v":"FGFF010"},3,"Full Friction",{"$f":"$E$96","v":420},"n.a","<choose color>","n.a",0,{"$f":"$E$96*P96","v":0},{"$f":"$G$96*P96","v":0}]
[null,null,null,null,null,null,null,null,null,null,null,null,"Subtotal (Pulsar Full Friction)",null,null,{"$f":"SUMIF($M$96:M97,\"<>*subtotal*\",$P$96:P97)","v":0},{"$f":"SUMIF($M$96:M97,\"<>*subtotal*\",$Q$96:Q97)","v":0},{"$f":"SUMIF($M$96:M97,\"<>*subtotal*\",$R$96:R97)","v":0}]
["FGFF011",null,"Nebula Full Friction\nSet of 3 fiberglass macros ","Full Friction",420,"56/33/10\n57/36/13\n56/35/16",4.7,"Nebula",{"$f":"$A$98","v":"FGFF011"},3,"Full Friction",{"$f":"$E$98","v":420},"n.a","<choose color>","n.a",0,{"$f":"$E$98*P98","v":0},{"$f":"$G$98*P98","v":0}]
[null,null,null,null,null,null,null,null,null,null,null,null,"Subtotal (Nebula Full Friction)",null,null,{"$f":"SUMIF($M$98:M99,\"<>*subtotal*\",$P$98:P99)","v":0},{"$f":"SUMIF($M$98:M99,\"<>*subtotal*\",$Q$98:Q99)","v":0},{"$f":"SUMIF($M$98:M99,\"<>*subtotal*\",$R$98:R99)","v":0}]
["FGFF012",null,"Quantium Full Friction\nSet of 3 fiberglass macros ","Full Friction",420,"55/28/13\n61/29/13\n56/28/9",3.9,"Quantum",{"$f":"$A$100","v":"FGFF012"},3,"Full Friction",{"$f":"$E$100","v":420},"n.a","<choose color>","n.a",0,{"$f":"$E$100*P100","v":0},{"$f":"$G$100*P100","v":0}]
[null,null,null,null,null,null,null,null,null,null,null,null,"Subtotal (Quantium Full Friction)",null,null,{"$f":"SUMIF($M$100:M101,\"<>*subtotal*\",$P$100:P101)","v":0},{"$f":"SUMIF($M$100:M101,\"<>*subtotal*\",$Q$100:Q101)","v":0},{"$f":"SUMIF($M$100:M101,\"<>*subtotal*\",$R$100:R101)","v":0}]
["FGFF013",null,"Axiom Full Friction\nSet of 3 fiberglass macros ","Full Friction",460,"65/35/11\n70/37/11\n68/39/13",5.3,"Axiom",{"$f":"$A$102","v":"FGFF013"},3,"Full Friction",{"$f":"$E$102","v":460},"n.a","<choose color>","n.a",0,{"$f":"$E$102*P102","v":0},{"$f":"$G$102*P102","v":0}]
[null,null,null,null,null,null,null,null,null,null,null,null,"Subtotal (Axiom Full Friction)",null,null,{"$f":"SUMIF($M$102:M103,\"<>*subtotal*\",$P$102:P103)","v":0},{"$f":"SUMIF($M$102:M103,\"<>*subtotal*\",$Q$102:Q103)","v":0},{"$f":"SUMIF($M$102:M103,\"<>*subtotal*\",$R$102:R103)","v":0}]
["FGFF026",null,"Leaves Full Friction\nSet of 21 fiberglass macros size XXS-XL","Full Friction",1450,"21 different sizes",14,"Leaves",{"$f":"$A$104","v":"FGFF026"},21,"Full Friction",{"$f":"$E$104","v":1450},"n.a","<choose color>","n.a",0,{"$f":"$E$104*P104","v":0},{"$f":"$G$104*P104","v":0}]
[null,null,null,null,null,null,null,null,null,null,null,null,"Subtotal (Leaves Full Friction)",null,null,{"$f":"SUMIF($M$104:M105,\"<>*subtotal*\",$P$104:P105)","v":0},{"$f":"SUMIF($M$104:M105,\"<>*subtotal*\",$Q$104:Q105)","v":0},{"$f":"SUMIF($M$104:M105,\"<>*subtotal*\",$R$104:R105)","v":0}]
["FGFF033",null,"Sahara XL Full Friction NEW!\nSet of 2 fiberglass macros size XL","Full Friction",370,"39/75.5/11\n38.5/76.5/16",3.7,"Sahara XL",{"$f":"$A$106","v":"FGFF033"},2,"Full Friction",{"$f":"$E$106","v":370},"n.a","<choose color>","n.a",0,{"$f":"$E$106*P106","v":0},{"$f":"$G$106*P106","v":0}]
[null,null,null,null,null,null,null,null,null,null,null,null,"Subtotal (Sahara XL Full Friction)",null,null,{"$f":"SUMIF($M$106:M107,\"<>*subtotal*\",$P$106:P107)","v":0},{"$f":"SUMIF($M$106:M107,\"<>*subtotal*\",$Q$106:Q107)","v":0},{"$f":"SUMIF($M$106:M107,\"<>*subtotal*\",$R$106:R107)","v":0}]
["FGFF034",null,"Sahara L Full Friction NEW!\nSet of 4 fiberglass macros size L","Full Friction",650,"L  60.5 to 63\nW 31 to 33\nH 8.5 to 9",4.5,"Sahara L",{"$f":"$A$108","v":"FGFF034"},4,"Full Friction",{"$f":"$E$108","v":650},"n.a","<choose color>","n.a",0,{"$f":"$E$108*P108","v":0},{"$f":"$G$108*P108","v":0}]
[null,null,null,null,null,null,null,null,null,null,null,null,"Subtotal (Sahara L Full Friction)",null,null,{"$f":"SUMIF($M$108:M109,\"<>*subtotal*\",$P$108:P109)","v":0},{"$f":"SUMIF($M$108:M109,\"<>*subtotal*\",$Q$108:Q109)","v":0},{"$f":"SUMIF($M$108:M109,\"<>*subtotal*\",$R$108:R109)","v":0}]
["FGFF035",null,"Sahara M Full Friction NEW!\nSet of 6 fiberglass macros size M","Full Friction",755,"L  44 to 46.5\nW 26 to 27\nH 7 to 9.5",4,"Sahara M",{"$f":"$A$110","v":"FGFF035"},6,"Full Friction",{"$f":"$E$110","v":755},"n.a","<choose color>","n.a",0,{"$f":"$E$110*P110","v":0},{"$f":"$G$110*P110","v":0}]
[null,null,null,null,null,null,null,null,null,null,null,null,"Subtotal (Sahara M Full Friction)",null,null,{"$f":"SUMIF($M$110:M111,\"<>*subtotal*\",$P$110:P111)","v":0},{"$f":"SUMIF($M$110:M111,\"<>*subtotal*\",$Q$110:Q111)","v":0},{"$f":"SUMIF($M$110:M111,\"<>*subtotal*\",$R$110:R111)","v":0}]
["FGFF036",null,"Sahara S Full Friction NEW!\nSet of 8 fiberglass macros size S","Full Friction",550,"L  23 to 29\nW 13 to 17\nH 4 to 6.5",2.15,"Sahara S",{"$f":"$A$112","v":"FGFF036"},8,"Full Friction",{"$f":"$E$112","v":550},"n.a","<choose color>","n.a",0,{"$f":"$E$112*P112","v":0},{"$f":"$G$112*P112","v":0}]
[null,null,null,null,null,null,null,null,null,null,null,null,"Subtotal (Sahara S Full Friction)",null,null,{"$f":"SUMIF($M$112:M113,\"<>*subtotal*\",$P$112:P113)","v":0},{"$f":"SUMIF($M$112:M113,\"<>*subtotal*\",$Q$112:Q113)","v":0},{"$f":"SUMIF($M$112:M113,\"<>*subtotal*\",$R$112:R113)","v":0}]
["FGFF037",null,"Sahara XS Full Friction NEW!\nSet of 10 fiberglass macros size XS","Full Friction",390,"L  15 to 17\nW 10 to 10.5\nH 3 to 4",1.25,"Sahara XS",{"$f":"$A$114","v":"FGFF037"},10,"Full Friction",{"$f":"$E$114","v":390},"n.a","<choose color>","n.a",0,{"$f":"$E$114*P114","v":0},{"$f":"$G$114*P114","v":0}]
[null,null,null,null,null,null,null,null,null,null,null,null,"Subtotal (Sahara XS Full Friction)",null,null,{"$f":"SUMIF($M$114:M115,\"<>*subtotal*\",$P$114:P115)","v":0},{"$f":"SUMIF($M$114:M115,\"<>*subtotal*\",$Q$114:Q115)","v":0},{"$f":"SUMIF($M$114:M115,\"<>*subtotal*\",$R$114:R115)","v":0}]
["FGDF048",null,"Sahara full set Full Friction NEW!\nSet of 44, fiberglass size XS-XL \n& PE holds size XXS *","Full Friction",2440,"various sizes",15.6,"Sahara full set",{"$f":"$A$116","v":"FGDF048"},44,"Full Friction",{"$f":"$E116","v":2440},"n.a","<choose color>","n.a",0,{"$f":"$E$116*P116","v":0},{"$f":"$G$116*P116","v":0}]
[null,null,null,null,null,null,null,null,null,null,null,null,"Subtotal (Sahara full set FF)",null,null,{"$f":"SUMIF($M$116:M117,\"<>*subtotal*\",$P$116:P117)","v":0},{"$f":"SUMIF($M$116:M117,\"<>*subtotal*\",$Q$116:Q117)","v":0},{"$f":"SUMIF($M$116:N117,\"<>*subtotal*\",$R$116:R117)","v":0}]
["TFFF039",null,"Atacama Full Friction NEW!\nSet of 4 thermoformed macros","Full Friction",660,"L  69 to 72\nW 33.5 to 34\nH 14 to 15",5.3,"Atacama",{"$f":"$A$118","v":"TFFF039"},4,"Full Friction",{"$f":"$E$118","v":660},"n.a","<choose color>","n.a",0,{"$f":"$E$118*P118","v":0},{"$f":"$G$118*P118","v":0}]
[null,null,null,null,null,null,null,null,null,null,null,null,"Subtotal (Atacama Full Friction)",null,null,{"$f":"SUMIF($M$118:M119,\"<>*subtotal*\",$P$118:P119)","v":0},{"$f":"SUMIF($M$118:M119,\"<>*subtotal*\",$Q$118:Q119)","v":0},{"$f":"SUMIF($M$118:M119,\"<>*subtotal*\",$R$118:R119)","v":0}]
["TFFF040",null,"Gobi Full Friction NEW!\nSet of 4 thermoformed macros","Full Friction",672,"L  68 to 71\nW 48 to 50\nH 12 to 15",6,"Gobi",{"$f":"$A$120","v":"TFFF040"},4,"Full Friction",{"$f":"$E$120","v":672},"n.a","<choose color>","n.a",0,{"$f":"$E$120*P120","v":0},{"$f":"$G$120*P120","v":0}]
[null,null,null,null,null,null,null,null,null,null,null,null,"Subtotal (Gobi Full Friction)",null,null,{"$f":"SUMIF($M$120:M121,\"<>*subtotal*\",$P$120:P121)","v":0},{"$f":"SUMIF($M$120:M121,\"<>*subtotal*\",$Q$120:Q121)","v":0},{"$f":"SUMIF($M$120:M121,\"<>*subtotal*\",$R$120:R121)","v":0}]
["TFFF041",null,"Namib Full Friction NEW!\nSet of 4 thermoformed macros","Full Friction",668,"L  57.5 to 67\nW 49 to 51.5\nH 14 to 16",5.2,"Namib",{"$f":"$A$122","v":"TFFF041"},4,"Full Friction",{"$f":"$E$122","v":668},"n.a","<choose color>","n.a",0,{"$f":"$E$122*P122","v":0},{"$f":"$G$122*P122","v":0}]
[null,null,null,null,null,null,null,null,null,null,null,null,"Subtotal (Namib Full Friction)",null,null,{"$f":"SUMIF($M$122:M123,\"<>*subtotal*\",$P$122:P123)","v":0},{"$f":"SUMIF($M$122:M123,\"<>*subtotal*\",$Q$122:Q123)","v":0},{"$f":"SUMIF($M$122:M123,\"<>*subtotal*\",$R$122:R123)","v":0}]
["TFFF042",null,"Mojave Full Friction NEW!\nSet of 4 thermoformed macros","Full Friction",652,"L  67.5 to 72\nW 31.5 to 34.5\nH 9.5 to 15.5",4.75,"Mojave",{"$f":"$A$124","v":"TFFF042"},4,"Full Friction",{"$f":"$E$124","v":652},"n.a","<choose color>","n.a",0,{"$f":"$E$124*P124","v":0},{"$f":"$G$124*P124","v":0}]
[null,null,null,null,null,null,null,null,null,null,null,null,"Subtotal (Mojave Full Friction)",null,null,{"$f":"SUMIF($M$124:M125,\"<>*subtotal*\",$P$124:P125)","v":0},{"$f":"SUMIF($M$124:M125,\"<>*subtotal*\",$Q$124:Q125)","v":0},{"$f":"SUMIF($M$124:M125,\"<>*subtotal*\",$R$124:R125)","v":0}]
["TFFF043",null,"Atacama S Full Friction NEW!\nSet of 4 thermoformed macros","Full Friction",360,"L  49 to 52\nW 24 to 27\nH 9.5 to 12",2.8,"Atacama S",{"$f":"$A$126","v":"TFFF043"},4,"Full Friction",{"$f":"$E$126","v":360},"n.a","<choose color>","n.a",0,{"$f":"$E$126*P126","v":0},{"$f":"$G$126*P126","v":0}]
[null,null,null,null,null,null,null,null,null,null,null,null,"Subtotal (Atacama S Full Friction)",null,null,{"$f":"SUMIF($M$126:M127,\"<>*subtotal*\",$P$126:P127)","v":0},{"$f":"SUMIF($M$126:M127,\"<>*subtotal*\",$Q$126:Q127)","v":0},{"$f":"SUMIF($M$126:M127,\"<>*subtotal*\",$R$126:R127)","v":0}]
["TFFF044",null,"Gobi S Full Friction NEW!\nSet of 4 thermoformed macros","Full Friction",359,"L  34 to 39\nW 30 to 32\nH 8.5 to 11",2.5,"Gobi S",{"$f":"$A$128","v":"TFFF044"},4,"Full Friction",{"$f":"$E$128","v":359},"n.a","<choose color>","n.a",0,{"$f":"$E$128*P128","v":0},{"$f":"$G$128*P128","v":0}]
[null,null,null,null,null,null,null,null,null,null,null,null,"Subtotal (Gobi S Full Friction)",null,null,{"$f":"SUMIF($M$128:M129,\"<>*subtotal*\",$P$128:P129)","v":0},{"$f":"SUMIF($M$128:M129,\"<>*subtotal*\",$Q$128:Q129)","v":0},{"$f":"SUMIF($M$128:M129,\"<>*subtotal*\",$R$128:R129)","v":0}]
["TFFF045",null,"Namib S Full Friction NEW!\nSet of 4 thermoformed macros","Full Friction",359,"L  33 to 36\nW 28 to 30.5\nH 11 to 12.5",2.4,"Namib S",{"$f":"$A$130","v":"TFFF045"},4,"Full Friction",{"$f":"$E$130","v":359},"n.a","<choose color>","n.a",0,{"$f":"$E$130*P130","v":0},{"$f":"$G$130*P130","v":0}]
[null,null,null,null,null,null,null,null,null,null,null,null,"Subtotal (Namib S Full Friction)",null,null,{"$f":"SUMIF($M$130:M131,\"<>*subtotal*\",$P$130:P131)","v":0},{"$f":"SUMIF($M$130:M131,\"<>*subtotal*\",$Q$130:Q131)","v":0},{"$f":"SUMIF($M$130:M131,\"<>*subtotal*\",$R$130:R131)","v":0}]
["TFFF046",null,"Mojave S Full Friction NEW!\nSet of 4 thermoformed macros","Full Friction",358,"L  52 to 56.5\nW 22 to 30\nH 8 to 12",2.65,"Mojave S",{"$f":"$A$132","v":"TFFF046"},4,"Full Friction",{"$f":"$E$132","v":358},"n.a","<choose color>","n.a",0,{"$f":"$E$132*P132","v":0},{"$f":"$G$132*P132","v":0}]
[null,null,null,null,null,null,null,null,null,null,null,null,"Subtotal (Mojave S Full Friction)",null,null,{"$f":"SUMIF($M$132:M133,\"<>*subtotal*\",$P$132:P133)","v":0},{"$f":"SUMIF($M$132:M133,\"<>*subtotal*\",$Q$132:Q133)","v":0},{"$f":"SUMIF($M$132:M133,\"<>*subtotal*\",$R$132:R133)","v":0}]
["PEDF051",null,"Downholds Ful Friction NEW! ***\none PE hold","Full Friction",20,"L=16\nW=15",0.98,"Downholds",{"$f":"$A$134","v":"PEDF051"},1,"Full Friction",{"$f":"$E134","v":20},"n.a","<choose color>","<choose color>",0,{"$f":"P134*($E$134+IF(P134>=100,-4.5,IF(P134>=50,-3.5,IF(P134>=24,-2,0))))","v":0},{"$f":"$G$134*P134","v":0}]
[null,null,null,null,null,null,null,null,null,null,null,null,"Subtotal (Downholds)",null,null,{"$f":"SUMIF($M$134:M135,\"<>*subtotal*\",$P$134:P135)","v":0},{"$f":"SUMIF($M$134:M135,\"<>*subtotal*\",$Q$134:Q135)","v":0},{"$f":"SUMIF($M$134:M135,\"<>*subtotal*\",$R$134:R135)","v":0}]
["PEDF049",null,"Sahara XXS Dual NEW! **\nSet of 14 PE holds size XXS","Dual",48,"L 8 to 9.5\nW 5 to 6.5\nH 2.5 to 4",1.3,"Sahara XXS",{"$f":"$A$136","v":"PEDF049"},14,"Dual",{"$f":"$E136","v":48},"n.a","<choose color>","n.a",0,{"$f":"$E$136*P136","v":0},{"$f":"$G$136*P136","v":0}]
[null,null,null,null,null,null,null,null,null,null,null,null,"Subtotal (Sahara XXS)",null,null,{"$f":"SUMIF($M$136:M137,\"<>*subtotal*\",$P$136:P137)","v":0},{"$f":"SUMIF($M$136:M137,\"<>*subtotal*\",$Q$136:Q137)","v":0},{"$f":"SUMIF($M$136:M137,\"<>*subtotal*\",$R$136:R137)","v":0}]
[]
[]
[null,null,"  * Sahara XXS is included in the 44-piece Dual set. It's color will be the color selected under \"Grip part surface color\"."]
[]
[null,null,"** Sahara XXS is made of polyester material and is included in both the dual and full friction 44-piece sets."]
[]
[null,null,"*** Downholds are made of polyester material and can be one color only, which should be selected in column \"Grip part surface color\"."]
[null,null,"     The color of the arrow for Downholds is selected in column \"Smooth part surface color\"."]
[null,null,"     For quantities 24 or more the price is 18 Euro;  50 or more--16.50 Euro; 100 or more--15.50 Euro."]
[]
[null,null,{"$f":"\"NOTE: For all Dual thermoformed macros where the smooth part is transparent, the price is \"&ReferenceData!T1&\" percent higher. \"","v":"NOTE: For all Dual thermoformed macros where the smooth part is transparent, the price is 5 percent higher. "}]

{"sheet":"Technical Specificaitons","index":3,"n_rows":41,"n_cols":3,"rows_kept":41,"cut":false,"hidden":false,"merged":[[2,1,2,2],[9,1,9,2],[38,1,38,2],[22,1,22,2]]}
[]
[]
[null,"Upon receipt of your order:"]
[null,null,"1) Inspect carefully the packaging - if there are any damages to the carton box, contact the delivery company."]
[null,null,"2) Each macro/hold should be inspected immediately after receiving the order. If you find defects that compromise the strength and safety, or if the appearance is not as expected, please take photos."]
[null,null,"3) Contact Trickit as soon as possible and provide the photos together with description of the defects, so that the problem can be resolved. "]
[]
[]
[]
[null,"Installation"]
[null,null,"The installation of the macros/holds must be carried out in the presence and under the control of competent personnel. Incorrect installation may lead to injury."]
[null,null,"Wall surface & general instructions:"]
[null,null,"The macros/holds must be installed on a flat surface according to the standards for climbing walls."]
[null,null,"The entire hold/macro should rest fully on the climbing wall; no parts of it may protrude outside of the wall."]
[null,null,"The holds/macros are designed with a certain number of mounting holes; you must use all of them. You should not drill holes in the macros/holds. Screwing holds on the product is at your own risk - this may cause structural damage."]
[null,null,"Screws & Bolts:"]
[null,null,"The optimal size of the screws' diameter is 4.5mm. Screws under 4.0mm may not provide a strong enough installation. Screws over 5.0mm can compromise the structural integrity of the holds/macros. Do not use screws over 5.0mm! \n"]
[null,null,"Make sure the length of the screw goes through the entire mounting surface of the wall. When attaching holds with screws ensure that the  screw thread is protruding at least 5 mm from the back of birch plywood wall. The screws must not protrude beyond the mounting bushings. The entire thread of the screw must be screwed into the mounting hole.  "]
[null,null,"Woodscrews are generally not recommended for repeated use and should be inspected or discarded after each reset."]
[null,null,"Where the volume/hold is designed to be fixed with a mounting bolt it is necessary to use an M10 socket head bolt of the appropriate length so that the bolt protrudes beyond the t-nut on the back of the wall."]
[null,null,"Do not over-tighten. Do not use old holes in the wall on which you are installing the macros/holds."]
[]
[null,"Use and maintenance"]
[null,null,"General:"]
[null,null,"All macros/holds made of PU are intended for indoor use."]
[null,null,"All products made of fiberglass and plywood can be used outdoors, but under shelter and protected from direct exposure to moisture, rain, snow and sunlight. Outdoor use could reduce the life of the product and could cause the colours to fade more quickly. "]
[null,null,"The products are specified for temperatures from +55°C to -15°C."]
[null,null,"Inspect products before each setup to ensure their structural integrity. Do not use macros/holds with compromised structural integrity, as this can lead to injuries."]
[null,null,"In some cases, after intensive or prolonged use, it may be necessary to re-tighten the screws of the macros/holds."]
[null,null,"Using macros/holds continuously under intense climbing as steps without change is not desirable. This may deteriorate their surface characteristics."]
[null,null,"No rope may run over the macro/hold on climbing walls, as damage may occur to the hold, macro and rope."]
[null,null,"Cleaning:"]
[null,null,"The macros/holds must be cleaned regularly, and the frequency of cleaning must be in accordance with the intensity and duration of use."]
[null,null,"The macros/holds should be removed from the wall to be cleaned thoroughly. We don't recommend using chemicals; we recommend using water jet with a water temperature no higher than 40°C (100°F) at a distance no closer than 35cm, to avoid damaging the surface. "]
[null,null,"Between detailed cleanings, installed macros/holds should be cleaned regularly with climbing brushes."]
[null,null,"Storage:"]
[null,null,"If holds or macros are stacked, we strongly recommend that carpet, fleece or similar suitable layers should be placed between them to maintain the longevity of the coating."]
[]
[null,"Warranty and Replacement:"]
[null,null,"Compliance with these instructions is a basic requirement for safe use of the products, and warranty application. "]
[null,null,"Тhrowing, careless treatment of the products, or misuse can lead to structural or cosmetic problems that manifest themselves immediately or over time, for which Trickit will not be responsible."]

{"sheet":"Links","index":4,"n_rows":87,"n_cols":9,"rows_kept":87,"cut":false,"hidden":true,"merged":[]}
[]
[null,null,"Use for entry form"]
["DUAL",null,null,null,null,"Link"]
["Pressure S","https://drive.google.com/uc?export=view&id=1GuV7YmnBwEfKe3ABunftIYvj5RrcUh9e",{"$f":"D4&E4","v":"https://drive.google.com/uc?export=view&id=1GuV7YmnBwEfKe3ABunftIYvj5RrcUh9e"},"https://drive.google.com/uc?export=view&id=",{"$f":"MID(F4,G4+3,H4-G4-3)","v":"1GuV7YmnBwEfKe3ABunftIYvj5RrcUh9e"},"https://drive.google.com/file/d/1GuV7YmnBwEfKe3ABunftIYvj5RrcUh9e/view?usp=sharing",{"$f":"FIND(\"/d/\",F4)","v":30},{"$f":"FIND(\"/\",F4,G4+3)","v":66}]
["Pressure M","https://drive.google.com/uc?export=view&id=1Z2OQ56fkfVjJw0AuCNzC8e0nnJ6ZDLzy",{"$f":"D5&E5","v":"https://drive.google.com/uc?export=view&id=1Z2OQ56fkfVjJw0AuCNzC8e0nnJ6ZDLzy"},"https://drive.google.com/uc?export=view&id=",{"$f":"MID(F5,G5+3,H5-G5-3)","v":"1Z2OQ56fkfVjJw0AuCNzC8e0nnJ6ZDLzy"},"https://drive.google.com/file/d/1Z2OQ56fkfVjJw0AuCNzC8e0nnJ6ZDLzy/view?usp=sharing",30,{"$f":"FIND(\"/\",F5,G5+3)","v":66}]
["Vaccuum S","https://drive.google.com/uc?export=view&id=1nQ4MDqZa75TemdSk0YFiZ1y9os7TOxnb",{"$f":"D6&E6","v":"https://drive.google.com/uc?export=view&id=1nQ4MDqZa75TemdSk0YFiZ1y9os7TOxnb"},"https://drive.google.com/uc?export=view&id=","1nQ4MDqZa75TemdSk0YFiZ1y9os7TOxnb","https://drive.google.com/file/d/1nQ4MDqZa75TemdSk0YFiZ1y9os7TOxnb/view?usp=sharing",30,66]
["Vaccum M","https://drive.google.com/uc?export=view&id=1Cs852QWd7LOlDOSJtcKYTm6YV5T4MFE2","https://drive.google.com/uc?export=view&id=1Cs852QWd7LOlDOSJtcKYTm6YV5T4MFE2","https://drive.google.com/uc?export=view&id=","1Cs852QWd7LOlDOSJtcKYTm6YV5T4MFE2","https://drive.google.com/file/d/1Cs852QWd7LOlDOSJtcKYTm6YV5T4MFE2/view?usp=sharing",30,66]
["Balance S","https://drive.google.com/uc?export=view&id=1Y1Ou2Ba5EMt5Tk5lQubXsV9Oa_zPA3Vf",{"$f":"D8&E8","v":"https://drive.google.com/uc?export=view&id=1Y1Ou2Ba5EMt5Tk5lQubXsV9Oa_zPA3Vf"},"https://drive.google.com/uc?export=view&id=","1Y1Ou2Ba5EMt5Tk5lQubXsV9Oa_zPA3Vf","https://drive.google.com/file/d/1Y1Ou2Ba5EMt5Tk5lQubXsV9Oa_zPA3Vf/view?usp=sharing",30,66]
["Balance M","https://drive.google.com/uc?export=view&id=1904q2jMr4M3VeFWkrm1oGPvER32INInz","https://drive.google.com/uc?export=view&id=1904q2jMr4M3VeFWkrm1oGPvER32INInz","https://drive.google.com/uc?export=view&id=","1904q2jMr4M3VeFWkrm1oGPvER32INInz","https://drive.google.com/file/d/1904q2jMr4M3VeFWkrm1oGPvER32INInz/view?usp=sharing",30,66]
["Orca","https://drive.google.com/uc?export=view&id=1tod3suu3TGeYpg2UWuPF7_sCYWs9Dfn2",{"$f":"D10&E10","v":"https://drive.google.com/uc?export=view&id=1tod3suu3TGeYpg2UWuPF7_sCYWs9Dfn2"},"https://drive.google.com/uc?export=view&id=","1tod3suu3TGeYpg2UWuPF7_sCYWs9Dfn2","https://drive.google.com/file/d/1tod3suu3TGeYpg2UWuPF7_sCYWs9Dfn2/view?usp=sharing",30,66]
["Narwala","https://drive.google.com/uc?export=view&id=1UBeklR5vZ70XCVHRTcDib80Zynz5Qn7f",{"$f":"D11&E11","v":"https://drive.google.com/uc?export=view&id=1UBeklR5vZ70XCVHRTcDib80Zynz5Qn7f"},"https://drive.google.com/uc?export=view&id=","1UBeklR5vZ70XCVHRTcDib80Zynz5Qn7f","https://drive.google.com/file/d/1UBeklR5vZ70XCVHRTcDib80Zynz5Qn7f/view?usp=sharing",30,66]
["Entropy","https://drive.google.com/uc?export=view&id=1TZh--G6ZQz30cCAwA4k54jPWP0O1gKPr",{"$f":"D12&E12","v":"https://drive.google.com/uc?export=view&id=1TZh--G6ZQz30cCAwA4k54jPWP0O1gKPr"},"https://drive.google.com/uc?export=view&id=","1TZh--G6ZQz30cCAwA4k54jPWP0O1gKPr","https://drive.google.com/file/d/1TZh--G6ZQz30cCAwA4k54jPWP0O1gKPr/view?usp=sharing",30,66]
["Pulsar","https://drive.google.com/uc?export=view&id=1CRLffnqSQOp2PjWg9Pnob2tXqzOVqV66",{"$f":"D13&E13","v":"https://drive.google.com/uc?export=view&id=1CRLffnqSQOp2PjWg9Pnob2tXqzOVqV66"},"https://drive.google.com/uc?export=view&id=","1CRLffnqSQOp2PjWg9Pnob2tXqzOVqV66","https://drive.google.com/file/d/1CRLffnqSQOp2PjWg9Pnob2tXqzOVqV66/view?usp=sharing",30,66,"https://drive.google.com/file/d/1CRLffnqSQOp2PjWg9Pnob2tXqzOVqV66/view?usp=sharing"]
["Nebula","https://drive.google.com/uc?export=view&id=1y-3g-5vLREXqn-WzGUaSoGk0XsDu5EN7","https://drive.google.com/uc?export=view&id=1y-3g-5vLREXqn-WzGUaSoGk0XsDu5EN7","https://drive.google.com/uc?export=view&id=","1y-3g-5vLREXqn-WzGUaSoGk0XsDu5EN7","https://drive.google.com/file/d/1y-3g-5vLREXqn-WzGUaSoGk0XsDu5EN7/view?usp=sharing",30,66]
["Quantum","https://drive.google.com/uc?export=view&id=1EUviRSPK9N5MCDObo27mr0hk6B0AGB5n","https://drive.google.com/uc?export=view&id=1EUviRSPK9N5MCDObo27mr0hk6B0AGB5n","https://drive.google.com/uc?export=view&id=","1EUviRSPK9N5MCDObo27mr0hk6B0AGB5n","https://drive.google.com/file/d/1EUviRSPK9N5MCDObo27mr0hk6B0AGB5n/view?usp=sharing",30,66]
["Axiom","https://drive.google.com/uc?export=view&id=1pG1cATfzPYMXgYZvNssOD97nhU1FbQ-Y","https://drive.google.com/uc?export=view&id=1pG1cATfzPYMXgYZvNssOD97nhU1FbQ-Y","https://drive.google.com/uc?export=view&id=","1pG1cATfzPYMXgYZvNssOD97nhU1FbQ-Y","https://drive.google.com/file/d/1pG1cATfzPYMXgYZvNssOD97nhU1FbQ-Y/view?usp=sharing",30,66]
["Planet 1a","https://drive.google.com/uc?export=view&id=1qrLjURSPYcHQdiSXzIJRd-Fw1iKXcWku",{"$f":"D17&E17","v":"https://drive.google.com/uc?export=view&id=1qrLjURSPYcHQdiSXzIJRd-Fw1iKXcWku"},"https://drive.google.com/uc?export=view&id=","1qrLjURSPYcHQdiSXzIJRd-Fw1iKXcWku","https://drive.google.com/file/d/1qrLjURSPYcHQdiSXzIJRd-Fw1iKXcWku/view?usp=sharing",30,66]
["Planet 1b","https://drive.google.com/uc?export=view&id=1VBtBoUQvleTWJ08nfrUqriT93nYx1irK","https://drive.google.com/uc?export=view&id=1VBtBoUQvleTWJ08nfrUqriT93nYx1irK","https://drive.google.com/uc?export=view&id=","1VBtBoUQvleTWJ08nfrUqriT93nYx1irK","https://drive.google.com/file/d/1VBtBoUQvleTWJ08nfrUqriT93nYx1irK/view?usp=sharing",30,66]
["Planet 1","https://drive.google.com/uc?export=view&id=1NF7k3b3oS1S8LQlkflJCkDAJYYGcjXnG","https://drive.google.com/uc?export=view&id=1NF7k3b3oS1S8LQlkflJCkDAJYYGcjXnG","https://drive.google.com/uc?export=view&id=","1NF7k3b3oS1S8LQlkflJCkDAJYYGcjXnG","https://drive.google.com/file/d/1NF7k3b3oS1S8LQlkflJCkDAJYYGcjXnG/view?usp=sharing",30,66]
["Planet 2","https://drive.google.com/uc?export=view&id=1-FDlXD0wGmO8yOCa74LEgW1-8vZD_A93","https://drive.google.com/uc?export=view&id=1-FDlXD0wGmO8yOCa74LEgW1-8vZD_A93","https://drive.google.com/uc?export=view&id=","1-FDlXD0wGmO8yOCa74LEgW1-8vZD_A93","https://drive.google.com/file/d/1-FDlXD0wGmO8yOCa74LEgW1-8vZD_A93/view?usp=sharing",30,66]
["Planet 3","https://drive.google.com/uc?export=view&id=1X-uz5BCn2vDk7O4UjWeRgeJc5jZzl8wl","https://drive.google.com/uc?export=view&id=1X-uz5BCn2vDk7O4UjWeRgeJc5jZzl8wl","https://drive.google.com/uc?export=view&id=","1X-uz5BCn2vDk7O4UjWeRgeJc5jZzl8wl","https://drive.google.com/file/d/1X-uz5BCn2vDk7O4UjWeRgeJc5jZzl8wl/view?usp=sharing",30,66]
["Planet 4","https://drive.google.com/uc?export=view&id=1eP7iew7yfLW-WHO4w5R9ewG1zhjCddU3","https://drive.google.com/uc?export=view&id=1eP7iew7yfLW-WHO4w5R9ewG1zhjCddU3","https://drive.google.com/uc?export=view&id=","1eP7iew7yfLW-WHO4w5R9ewG1zhjCddU3","https://drive.google.com/file/d/1eP7iew7yfLW-WHO4w5R9ewG1zhjCddU3/view?usp=sharing",30,66]
["Planet 5","https://drive.google.com/uc?export=view&id=1p-_0SBi-0mYgzKbA6ZQa2dv146ERHwHc","https://drive.google.com/uc?export=view&id=1p-_0SBi-0mYgzKbA6ZQa2dv146ERHwHc","https://drive.google.com/uc?export=view&id=","1p-_0SBi-0mYgzKbA6ZQa2dv146ERHwHc","https://drive.google.com/file/d/1p-_0SBi-0mYgzKbA6ZQa2dv146ERHwHc/view?usp=sharing",30,66]
["Planet 6","https://drive.google.com/uc?export=view&id=1MAmH8k9RUmhDkBj_zZM249Ey0Et9sybg","https://drive.google.com/uc?export=view&id=1MAmH8k9RUmhDkBj_zZM249Ey0Et9sybg","https://drive.google.com/uc?export=view&id=","1MAmH8k9RUmhDkBj_zZM249Ey0Et9sybg","https://drive.google.com/file/d/1MAmH8k9RUmhDkBj_zZM249Ey0Et9sybg/view?usp=sharing",30,66]
["Planet L full","https://drive.google.com/uc?export=view&id=1ZCXc1pAPWvdAuVXc0dFtFBe7_ysh1v1V","https://drive.google.com/uc?export=view&id=1ZCXc1pAPWvdAuVXc0dFtFBe7_ysh1v1V","https://drive.google.com/uc?export=view&id=","1ZCXc1pAPWvdAuVXc0dFtFBe7_ysh1v1V","https://drive.google.com/file/d/1ZCXc1pAPWvdAuVXc0dFtFBe7_ysh1v1V/view?usp=sharing",30,66]
["Planet S full","https://drive.google.com/uc?export=view&id=182j-1wYzBqWAS7fKOE0cN8tO3w7kTDUu","https://drive.google.com/uc?export=view&id=182j-1wYzBqWAS7fKOE0cN8tO3w7kTDUu","https://drive.google.com/uc?export=view&id=","182j-1wYzBqWAS7fKOE0cN8tO3w7kTDUu","https://drive.google.com/file/d/182j-1wYzBqWAS7fKOE0cN8tO3w7kTDUu/view?usp=sharing",30,66]
["Planet S&L","https://drive.google.com/uc?export=view&id=1VBgjrhaaL5LvkHL_5BOk4EBFaZHDD6vT","https://drive.google.com/uc?export=view&id=1VBgjrhaaL5LvkHL_5BOk4EBFaZHDD6vT","https://drive.google.com/uc?export=view&id=","1VBgjrhaaL5LvkHL_5BOk4EBFaZHDD6vT","https://drive.google.com/file/d/1VBgjrhaaL5LvkHL_5BOk4EBFaZHDD6vT/view?usp=sharing",30,66]
["Planet S Drops","https://drive.google.com/uc?export=view&id=1IrD_V4L39udmFHItFZqeMGxzUq-rC7Fw","https://drive.google.com/uc?export=view&id=1IrD_V4L39udmFHItFZqeMGxzUq-rC7Fw","https://drive.google.com/uc?export=view&id=","1IrD_V4L39udmFHItFZqeMGxzUq-rC7Fw","https://drive.google.com/file/d/1IrD_V4L39udmFHItFZqeMGxzUq-rC7Fw/view?usp=sharing",30,66]
["Gambit","https://drive.google.com/uc?export=view&id=1rNrVxB46XTB0X_hTWfWcO9uo4Iu06-E1","https://drive.google.com/uc?export=view&id=1rNrVxB46XTB0X_hTWfWcO9uo4Iu06-E1","https://drive.google.com/uc?export=view&id=","1rNrVxB46XTB0X_hTWfWcO9uo4Iu06-E1","https://drive.google.com/file/d/1rNrVxB46XTB0X_hTWfWcO9uo4Iu06-E1/view?usp=sharing",30,66]
["Gambit h4","https://drive.google.com/uc?export=view&id=18UJ26lNM5LARln4D5DsPtGR1cproqBaq","https://drive.google.com/uc?export=view&id=18UJ26lNM5LARln4D5DsPtGR1cproqBaq","https://drive.google.com/uc?export=view&id=",{"$f":"MID(F30,G30+3,H30-G30-3)","v":"18UJ26lNM5LARln4D5DsPtGR1cproqBaq"},"https://drive.google.com/file/d/18UJ26lNM5LARln4D5DsPtGR1cproqBaq/view?usp=sharing",30,66]
["Gambit h7","https://drive.google.com/uc?export=view&id=1A3q0mBk8kGEINgjcq1pnD_pz70qEfPxL","https://drive.google.com/uc?export=view&id=1A3q0mBk8kGEINgjcq1pnD_pz70qEfPxL","https://drive.google.com/uc?export=view&id=","1A3q0mBk8kGEINgjcq1pnD_pz70qEfPxL","https://drive.google.com/file/d/1A3q0mBk8kGEINgjcq1pnD_pz70qEfPxL/view?usp=sharing",30,66]
["Gambit h12","https://drive.google.com/uc?export=view&id=1_YqYHBY_fEZJnQzn44YYywAcGaXq_AY1","https://drive.google.com/uc?export=view&id=1_YqYHBY_fEZJnQzn44YYywAcGaXq_AY1","https://drive.google.com/uc?export=view&id=","1_YqYHBY_fEZJnQzn44YYywAcGaXq_AY1","https://drive.google.com/file/d/1_YqYHBY_fEZJnQzn44YYywAcGaXq_AY1/view?usp=sharing",30,66]
["Ventus","https://drive.google.com/uc?export=view&id=1ESfa66M10tlvlc_F0i_nHPOG9II1P6aM","https://drive.google.com/uc?export=view&id=1ESfa66M10tlvlc_F0i_nHPOG9II1P6aM","https://drive.google.com/uc?export=view&id=","1ESfa66M10tlvlc_F0i_nHPOG9II1P6aM","https://drive.google.com/file/d/1ESfa66M10tlvlc_F0i_nHPOG9II1P6aM/view?usp=sharing",30,66]
["Cumulus","https://drive.google.com/uc?export=view&id=1h58iYwMl14vmNvukBl1m0PXIdaR7TVOr","https://drive.google.com/uc?export=view&id=1h58iYwMl14vmNvukBl1m0PXIdaR7TVOr","https://drive.google.com/uc?export=view&id=","1h58iYwMl14vmNvukBl1m0PXIdaR7TVOr","https://drive.google.com/file/d/1h58iYwMl14vmNvukBl1m0PXIdaR7TVOr/view?usp=sharing",30,66]
["Sahara XL Dual","https://drive.google.com/uc?export=view&id=1Kz-W1_0vQHwm2CpktYZgD7VkhwFbKfG2","https://drive.google.com/uc?export=view&id=1Kz-W1_0vQHwm2CpktYZgD7VkhwFbKfG2","https://drive.google.com/uc?export=view&id=","1Kz-W1_0vQHwm2CpktYZgD7VkhwFbKfG2","https://drive.google.com/file/d/1Kz-W1_0vQHwm2CpktYZgD7VkhwFbKfG2/view?usp=sharing",30,66]
["Sahara L Dual","https://drive.google.com/uc?export=view&id=1VicijtLg6yukQh7q2K3z1gVPaBGMoXvr","https://drive.google.com/uc?export=view&id=1VicijtLg6yukQh7q2K3z1gVPaBGMoXvr","https://drive.google.com/uc?export=view&id=","1VicijtLg6yukQh7q2K3z1gVPaBGMoXvr","https://drive.google.com/file/d/1VicijtLg6yukQh7q2K3z1gVPaBGMoXvr/view?usp=sharing",30,66]
["Sahara M Dual","https://drive.google.com/uc?export=view&id=1buTQErop_Q5TtD2SdaCr9v1NNuOvsfUt","https://drive.google.com/uc?export=view&id=1buTQErop_Q5TtD2SdaCr9v1NNuOvsfUt","https://drive.google.com/uc?export=view&id=","1buTQErop_Q5TtD2SdaCr9v1NNuOvsfUt","https://drive.google.com/file/d/1buTQErop_Q5TtD2SdaCr9v1NNuOvsfUt/view?usp=sharing",30,66]
["Sahara S Dual","https://drive.google.com/uc?export=view&id=1Fsc3jHYu-Xd99gBP12EoFfT-W4NB7Jp7","https://drive.google.com/uc?export=view&id=1Fsc3jHYu-Xd99gBP12EoFfT-W4NB7Jp7","https://drive.google.com/uc?export=view&id=","1Fsc3jHYu-Xd99gBP12EoFfT-W4NB7Jp7","https://drive.google.com/file/d/1Fsc3jHYu-Xd99gBP12EoFfT-W4NB7Jp7/view?usp=sharing",30,66]
["Sahara XS Dual","https://drive.google.com/uc?export=view&id=1KVMi6dIpV6gE8Y_XW5bsDQULnchNc0AL","https://drive.google.com/uc?export=view&id=1KVMi6dIpV6gE8Y_XW5bsDQULnchNc0AL","https://drive.google.com/uc?export=view&id=","1KVMi6dIpV6gE8Y_XW5bsDQULnchNc0AL","https://drive.google.com/file/d/1KVMi6dIpV6gE8Y_XW5bsDQULnchNc0AL/view?usp=sharing",30,66]
["Sahara set Dual","https://drive.google.com/uc?export=view&id=1yjDdEEjPwJ1W07SBNpzwAfT_e571mCtF","https://drive.google.com/uc?export=view&id=1yjDdEEjPwJ1W07SBNpzwAfT_e571mCtF","https://drive.google.com/uc?export=view&id=","1yjDdEEjPwJ1W07SBNpzwAfT_e571mCtF","https://drive.google.com/file/d/1yjDdEEjPwJ1W07SBNpzwAfT_e571mCtF/view?usp=sharing",30,66]
["Atacama Dual","https://drive.google.com/uc?export=view&id=14aLYGaQ3gl9EAyiNkYGVqtAGw3K0Zmgo","https://drive.google.com/uc?export=view&id=14aLYGaQ3gl9EAyiNkYGVqtAGw3K0Zmgo","https://drive.google.com/uc?export=view&id=","14aLYGaQ3gl9EAyiNkYGVqtAGw3K0Zmgo","https://drive.google.com/file/d/14aLYGaQ3gl9EAyiNkYGVqtAGw3K0Zmgo/view?usp=sharing",30,66]
["Gobi Dual","https://drive.google.com/uc?export=view&id=1K5NpDukqZBJHVXgwYAmLg0djkQcIRYrD","https://drive.google.com/uc?export=view&id=1K5NpDukqZBJHVXgwYAmLg0djkQcIRYrD","https://drive.google.com/uc?export=view&id=","1K5NpDukqZBJHVXgwYAmLg0djkQcIRYrD","https://drive.google.com/file/d/1K5NpDukqZBJHVXgwYAmLg0djkQcIRYrD/view?usp=sharing",30,66]
["Namib Dual","https://drive.google.com/uc?export=view&id=1-CROxP37SDd7nOJVb8qVbX02GqMFqA9N","https://drive.google.com/uc?export=view&id=1-CROxP37SDd7nOJVb8qVbX02GqMFqA9N","https://drive.google.com/uc?export=view&id=","1-CROxP37SDd7nOJVb8qVbX02GqMFqA9N","https://drive.google.com/file/d/1-CROxP37SDd7nOJVb8qVbX02GqMFqA9N/view?usp=sharing",30,66]
["Mojave Dual","https://drive.google.com/uc?export=view&id=1V2SNubL-u4wawIVMuf1132wJp6K6gqjq","https://drive.google.com/uc?export=view&id=1V2SNubL-u4wawIVMuf1132wJp6K6gqjq","https://drive.google.com/uc?export=view&id=",{"$f":"MID(F44,G44+3,H44-G44-3)","v":"1V2SNubL-u4wawIVMuf1132wJp6K6gqjq"},"https://drive.google.com/file/d/1V2SNubL-u4wawIVMuf1132wJp6K6gqjq/view?usp=sharing",30,66]
["Atacama S Dual","https://drive.google.com/uc?export=view&id=1i6EURNia2ncy9JIW7Raddkn3ZpTGJ4uE","https://drive.google.com/uc?export=view&id=1i6EURNia2ncy9JIW7Raddkn3ZpTGJ4uE","https://drive.google.com/uc?export=view&id=",{"$f":"MID(F45,G45+3,H45-G45-3)","v":"1i6EURNia2ncy9JIW7Raddkn3ZpTGJ4uE"},"https://drive.google.com/file/d/1i6EURNia2ncy9JIW7Raddkn3ZpTGJ4uE/view?usp=sharing",30,66]
["Gobi S Dual","https://drive.google.com/uc?export=view&id=1CfmQteVxvPIUiQFzadRViWix3D7qyr09","https://drive.google.com/uc?export=view&id=1CfmQteVxvPIUiQFzadRViWix3D7qyr09","https://drive.google.com/uc?export=view&id=",{"$f":"MID(F46,G46+3,H46-G46-3)","v":"1CfmQteVxvPIUiQFzadRViWix3D7qyr09"},"https://drive.google.com/file/d/1CfmQteVxvPIUiQFzadRViWix3D7qyr09/view?usp=sharing",30,66]
["Namib S Dual","https://drive.google.com/uc?export=view&id=10_65rE8obBcF5eEMn774izBD2U6-aYSf","https://drive.google.com/uc?export=view&id=10_65rE8obBcF5eEMn774izBD2U6-aYSf","https://drive.google.com/uc?export=view&id=","10_65rE8obBcF5eEMn774izBD2U6-aYSf","https://drive.google.com/file/d/10_65rE8obBcF5eEMn774izBD2U6-aYSf/view?usp=sharing",30,66]
["Mojave S Dual","https://drive.google.com/uc?export=view&id=10v7putu3_WOhObL6SauVECpJs-Nm6nKZ","https://drive.google.com/uc?export=view&id=10v7putu3_WOhObL6SauVECpJs-Nm6nKZ","https://drive.google.com/uc?export=view&id=","10v7putu3_WOhObL6SauVECpJs-Nm6nKZ","https://drive.google.com/file/d/10v7putu3_WOhObL6SauVECpJs-Nm6nKZ/view?usp=sharing",30,66]
["Planet S Drops","https://drive.google.com/uc?export=view&id=1IrD_V4L39udmFHItFZqeMGxzUq-rC7Fw","https://drive.google.com/uc?export=view&id=1IrD_V4L39udmFHItFZqeMGxzUq-rC7Fw","https://drive.google.com/uc?export=view&id=",{"$f":"MID(F49,G49+3,H49-G49-3)","v":"1IrD_V4L39udmFHItFZqeMGxzUq-rC7Fw"},"https://drive.google.com/file/d/1IrD_V4L39udmFHItFZqeMGxzUq-rC7Fw/view?usp=sharing",30,66]
["Ssahara XXS","https://drive.google.com/uc?export=view&id=1HD38QfVVEQAo5hAtfaQ3GfLrht21FLMx",{"$f":"D50&E50","v":"https://drive.google.com/uc?export=view&id=1HD38QfVVEQAo5hAtfaQ3GfLrht21FLMx"},"https://drive.google.com/uc?export=view&id=",{"$f":"MID(F50,G50+3,H50-G50-3)","v":"1HD38QfVVEQAo5hAtfaQ3GfLrht21FLMx"},"https://drive.google.com/file/d/1HD38QfVVEQAo5hAtfaQ3GfLrht21FLMx/view?usp=sharing",{"$f":"FIND(\"/d/\",F50)","v":30},{"$f":"FIND(\"/\",F50,G50+3)","v":66}]
[]
[]
[]
[]
["FULL FRICTION"]
["Entropy","https://drive.google.com/uc?export=view&id=1AJMgt1zHmJqnVcvTDuyjv6-Il7onb5I7",{"$f":"D56&E56","v":"https://drive.google.com/uc?export=view&id=1AJMgt1zHmJqnVcvTDuyjv6-Il7onb5I7"},"https://drive.google.com/uc?export=view&id=",{"$f":"MID(F56,G56+3,H56-G56-3)","v":"1AJMgt1zHmJqnVcvTDuyjv6-Il7onb5I7"},"https://drive.google.com/file/d/1AJMgt1zHmJqnVcvTDuyjv6-Il7onb5I7/view?usp=sharing",{"$f":"FIND(\"/d/\",F56)","v":30},{"$f":"FIND(\"/\",F56,G56+3)","v":66}]
["Pulsar","https://drive.google.com/uc?export=view&id=1hsKhywDbHl8Sl62VO9gu7GZf4PzZS9I8",{"$f":"D57&E57","v":"https://drive.google.com/uc?export=view&id=1hsKhywDbHl8Sl62VO9gu7GZf4PzZS9I8"},"https://drive.google.com/uc?export=view&id=","1hsKhywDbHl8Sl62VO9gu7GZf4PzZS9I8","https://drive.google.com/file/d/1hsKhywDbHl8Sl62VO9gu7GZf4PzZS9I8/view?usp=sharing",30,66]
["Nebula","https://drive.google.com/uc?export=view&id=1pUZv2KOkaeS37ocjcKGcTiTr219b2blz","https://drive.google.com/uc?export=view&id=1pUZv2KOkaeS37ocjcKGcTiTr219b2blz","https://drive.google.com/uc?export=view&id=","1pUZv2KOkaeS37ocjcKGcTiTr219b2blz","https://drive.google.com/file/d/1pUZv2KOkaeS37ocjcKGcTiTr219b2blz/view?usp=sharing",30,66]
["Quantum","https://drive.google.com/uc?export=view&id=1SnJjVOJh9lkCPpVJ4Ti1zmpjNKmDAsDP","https://drive.google.com/uc?export=view&id=1SnJjVOJh9lkCPpVJ4Ti1zmpjNKmDAsDP","https://drive.google.com/uc?export=view&id=","1SnJjVOJh9lkCPpVJ4Ti1zmpjNKmDAsDP","https://drive.google.com/file/d/1SnJjVOJh9lkCPpVJ4Ti1zmpjNKmDAsDP/view?usp=sharing",30,66]
["Axiom","https://drive.google.com/uc?export=view&id=1E-FBgFcqx2YhmdpUG_vIoWQBgWRJOVZ2","https://drive.google.com/uc?export=view&id=1E-FBgFcqx2YhmdpUG_vIoWQBgWRJOVZ2","https://drive.google.com/uc?export=view&id=","1E-FBgFcqx2YhmdpUG_vIoWQBgWRJOVZ2","https://drive.google.com/file/d/1E-FBgFcqx2YhmdpUG_vIoWQBgWRJOVZ2/view?usp=sharing",30,66]
["Leaves","https://drive.google.com/uc?export=view&id=1vYyZLRn9Kir0-i7s4GQFsd2Se3vgHzk8","https://drive.google.com/uc?export=view&id=1vYyZLRn9Kir0-i7s4GQFsd2Se3vgHzk8","https://drive.google.com/uc?export=view&id=","1vYyZLRn9Kir0-i7s4GQFsd2Se3vgHzk8","https://drive.google.com/file/d/1vYyZLRn9Kir0-i7s4GQFsd2Se3vgHzk8/view?usp=sharing",30,66]
["Sahara XL FF","https://drive.google.com/uc?export=view&id=1ZQEEfNYhZxRXASR6DAYMR7ma7k__D4OU","https://drive.google.com/uc?export=view&id=1ZQEEfNYhZxRXASR6DAYMR7ma7k__D4OU","https://drive.google.com/uc?export=view&id=","1ZQEEfNYhZxRXASR6DAYMR7ma7k__D4OU","https://drive.google.com/file/d/1ZQEEfNYhZxRXASR6DAYMR7ma7k__D4OU/view?usp=sharing",30,66]
["Sahara L FF","https://drive.google.com/uc?export=view&id=1DFcj19suTWjccZPwt6ixvZTqReGYyXAc","https://drive.google.com/uc?export=view&id=1DFcj19suTWjccZPwt6ixvZTqReGYyXAc","https://drive.google.com/uc?export=view&id=","1DFcj19suTWjccZPwt6ixvZTqReGYyXAc","https://drive.google.com/file/d/1DFcj19suTWjccZPwt6ixvZTqReGYyXAc/view?usp=sharing",30,66]
["Sahara M FF","https://drive.google.com/uc?export=view&id=1c9hxC9SR7paZWwr85JoSSpxmiVbdDXaT","https://drive.google.com/uc?export=view&id=1c9hxC9SR7paZWwr85JoSSpxmiVbdDXaT","https://drive.google.com/uc?export=view&id=","1c9hxC9SR7paZWwr85JoSSpxmiVbdDXaT","https://drive.google.com/file/d/1c9hxC9SR7paZWwr85JoSSpxmiVbdDXaT/view?usp=sharing",30,66]
["Sahara S FF","https://drive.google.com/uc?export=view&id=1KgDbPra2SeFO--eH8UMXAM45UShDkpqc","https://drive.google.com/uc?export=view&id=1KgDbPra2SeFO--eH8UMXAM45UShDkpqc","https://drive.google.com/uc?export=view&id=","1KgDbPra2SeFO--eH8UMXAM45UShDkpqc","https://drive.google.com/file/d/1KgDbPra2SeFO--eH8UMXAM45UShDkpqc/view?usp=sharing",30,66]
["Sahara XS FF","https://drive.google.com/uc?export=view&id=1nVZlB8uGy_sOTID7mF82yvYvy6a1v72D","https://drive.google.com/uc?export=view&id=1nVZlB8uGy_sOTID7mF82yvYvy6a1v72D","https://drive.google.com/uc?export=view&id=","1nVZlB8uGy_sOTID7mF82yvYvy6a1v72D","https://drive.google.com/file/d/1nVZlB8uGy_sOTID7mF82yvYvy6a1v72D/view?usp=sharing",30,66]
["Sahara set FF","https://drive.google.com/uc?export=view&id=1QoKfYt-4iwgjtOPrJX0vaINAwiP4c6co","https://drive.google.com/uc?export=view&id=1QoKfYt-4iwgjtOPrJX0vaINAwiP4c6co","https://drive.google.com/uc?export=view&id=","1QoKfYt-4iwgjtOPrJX0vaINAwiP4c6co","https://drive.google.com/file/d/1QoKfYt-4iwgjtOPrJX0vaINAwiP4c6co/view?usp=sharing",30,66]
["Atacama FF","https://drive.google.com/uc?export=view&id=1AHiYOwEnci-HySzsZi-f5qLHYfZNPao5","https://drive.google.com/uc?export=view&id=1AHiYOwEnci-HySzsZi-f5qLHYfZNPao5","https://drive.google.com/uc?export=view&id=","1AHiYOwEnci-HySzsZi-f5qLHYfZNPao5","https://drive.google.com/file/d/1AHiYOwEnci-HySzsZi-f5qLHYfZNPao5/view?usp=sharing",30,66]
["Gobi FF",null,{"$error":"#VALUE!"},"https://drive.google.com/uc?export=view&id=",{"$error":"#VALUE!"},null,{"$error":"#VALUE!"},{"$error":"#VALUE!"}]
["Namib FF",null,{"$error":"#VALUE!"},"https://drive.google.com/uc?export=view&id=",{"$error":"#VALUE!"},null,{"$error":"#VALUE!"},{"$error":"#VALUE!"}]
["Mojave FF",null,{"$error":"#VALUE!"},"https://drive.google.com/uc?export=view&id=",{"$error":"#VALUE!"},null,{"$error":"#VALUE!"},{"$error":"#VALUE!"}]
["Atacama S  FF","https://drive.google.com/uc?export=view&id=1I3ziX1ea87r1I4MUePDZ7FU2yG8kdywJ","https://drive.google.com/uc?export=view&id=1I3ziX1ea87r1I4MUePDZ7FU2yG8kdywJ","https://drive.google.com/uc?export=view&id=","1I3ziX1ea87r1I4MUePDZ7FU2yG8kdywJ","https://drive.google.com/file/d/1I3ziX1ea87r1I4MUePDZ7FU2yG8kdywJ/view?usp=sharing",30,66]
["Gobi S FF",null,{"$error":"#VALUE!"},"https://drive.google.com/uc?export=view&id=",{"$error":"#VALUE!"},null,{"$error":"#VALUE!"},{"$error":"#VALUE!"}]
["Namib S FF",null,{"$error":"#VALUE!"},"https://drive.google.com/uc?export=view&id=",{"$error":"#VALUE!"},null,{"$error":"#VALUE!"},{"$error":"#VALUE!"}]
["MojaveS  FF",null,{"$error":"#VALUE!"},"https://drive.google.com/uc?export=view&id=",{"$error":"#VALUE!"},null,{"$error":"#VALUE!"},{"$error":"#VALUE!"}]
["Downholds","https://drive.google.com/uc?export=view&id=1LL8Bgsc6SoCO7MgvhX78Tdv6hxIdUzec","https://drive.google.com/uc?export=view&id=1LL8Bgsc6SoCO7MgvhX78Tdv6hxIdUzec","https://drive.google.com/uc?export=view&id=","1LL8Bgsc6SoCO7MgvhX78Tdv6hxIdUzec","https://drive.google.com/file/d/1LL8Bgsc6SoCO7MgvhX78Tdv6hxIdUzec/view?usp=sharing",30,66]
["Sahara XXS PE","https://drive.google.com/uc?export=view&id=1nVZlB8uGy_sOTID7mF82yvYvy6a1v72D",{"$error":"#VALUE!"},"https://drive.google.com/uc?export=view&id=",{"$error":"#VALUE!"},null,{"$error":"#VALUE!"},{"$error":"#VALUE!"}]
["Sahara full 44 set FF","https://drive.google.com/uc?export=view&id=1UxMqQmPcpO7HP1VkdPZtOD37K6Qj-tAb","https://drive.google.com/uc?export=view&id=1UxMqQmPcpO7HP1VkdPZtOD37K6Qj-tAb","https://drive.google.com/uc?export=view&id=","1UxMqQmPcpO7HP1VkdPZtOD37K6Qj-tAb","https://drive.google.com/file/d/1UxMqQmPcpO7HP1VkdPZtOD37K6Qj-tAb/view?usp=sharing",30,66]
[null,null,{"$error":"#VALUE!"},"https://drive.google.com/uc?export=view&id=",{"$error":"#VALUE!"},null,{"$error":"#VALUE!"},{"$error":"#VALUE!"}]
[null,null,{"$error":"#VALUE!"},"https://drive.google.com/uc?export=view&id=",{"$error":"#VALUE!"},null,{"$error":"#VALUE!"},{"$error":"#VALUE!"}]
[null,null,{"$error":"#VALUE!"},"https://drive.google.com/uc?export=view&id=",{"$error":"#VALUE!"},null,{"$error":"#VALUE!"},{"$error":"#VALUE!"}]
[null,null,{"$error":"#VALUE!"},"https://drive.google.com/uc?export=view&id=",{"$error":"#VALUE!"},null,{"$error":"#VALUE!"},{"$error":"#VALUE!"}]
[null,null,{"$error":"#VALUE!"},"https://drive.google.com/uc?export=view&id=",{"$error":"#VALUE!"},null,{"$error":"#VALUE!"},{"$error":"#VALUE!"}]
[null,null,{"$error":"#VALUE!"},"https://drive.google.com/uc?export=view&id=",{"$error":"#VALUE!"},null,{"$error":"#VALUE!"},{"$error":"#VALUE!"}]
[null,null,{"$error":"#VALUE!"},"https://drive.google.com/uc?export=view&id=",{"$error":"#VALUE!"},null,{"$error":"#VALUE!"},{"$error":"#VALUE!"}]
[]
["Leaves",null,{"$f":"D87&E87","v":"https://drive.google.com/uc?export=view&id=1bxjy2IVRUUtYL0FY0FVlkCRW-4xzvHqQ"},"https://drive.google.com/uc?export=view&id=",{"$f":"_xlfn.TEXTBEFORE(_xlfn.TEXTAFTER(F87,\"d/\"),\"/\")","v":"1bxjy2IVRUUtYL0FY0FVlkCRW-4xzvHqQ"},"https://drive.google.com/file/d/1bxjy2IVRUUtYL0FY0FVlkCRW-4xzvHqQ/view?usp=sharing"]

{"sheet":"Dimensions","index":5,"n_rows":24,"n_cols":19,"rows_kept":24,"cut":false,"hidden":true,"merged":[[12,14,16,14],[12,15,16,15],[17,14,22,14],[17,15,22,15],[3,14,4,14],[3,15,4,15],[5,14,7,14],[5,15,7,15],[8,14,11,14],[8,15,11,15]]}
[null,null,null,null,null,null,null,"Cumulus"]
[null,null,"Planet S","kg",null,null,null,null,null,null,null,null,null,null,null,"pcs","Length cm","width cm","kg"]
[null,1,"d=28 h10",0.59499999999999997,null,null,null,null,null,null,null,null,null,null,"Leave XL",1,95,38,2.8]
[null,2,"d=26 h8",0.49,null,null,null,null,null,null,null,null,null,null,"Leave L",2,67,30,1.5]
[null,3,"d=24 h6",0.43,null,null,null,null,null,null,null,null,null,null,null,null,68,30,1.7]
[null,4,"d=23 h8",0.38,null,null,null,null,null,null,null,null,null,null,"Leave M",3,56,24,0.9]
[null,5,"d=22 h5",0.32,null,null,null,null,null,null,null,null,null,null,null,null,57,20,1]
[null,6,"d=20.5 h5",0.28999999999999998,null,null,null,null,null,null,null,null,null,null,null,null,60,24,1]
[null,7,"d=20 h4",0.245,null,null,null,null,null,null,null,null,null,null,"Leave S",4,41,17,0.5]
[null,8,"d=16 h4",0.19,null,null,null,null,null,null,null,null,null,null,null,null,43,17,0.6]
[null,null,"продаваме ги само като сет от 8бр",null,null,null,null,null,null,null,null,null,null,null,null,null,43,18,0.6]
[null,null,null,null,null,null,null,null,null,null,null,null,null,null,null,null,42,19,0.6]
[null,null,null,null,null,null,null,null,null,null,null,null,null,null,"Leave XS",5,25,12,0.25]
[null,null,null,null,null,null,null,null,null,null,null,null,null,null,null,null,25,13,0.28000000000000003]
[null,null,null,null,null,null,null,null,null,null,null,null,null,null,null,null,22,11,0.25]
[null,null,null,null,null,null,null,null,null,null,null,null,null,null,null,null,24,11,0.2]
[null,null,null,null,null,null,null,null,null,null,null,null,null,null,null,null,21,11.5,0.2]
[null,null,null,null,null,null,null,null,null,null,null,null,null,null,"Leave XXS",6,14,9,0.13]
[null,null,null,null,null,null,null,null,null,null,null,null,null,null,null,null,15,9,0.14000000000000001]
[null,null,null,null,null,null,null,null,null,null,null,null,null,null,null,null,14,7.5,0.1]
[null,null,null,null,null,null,null,null,null,null,null,null,null,null,null,null,14.5,8,0.11]
[null,null,null,null,null,null,null,null,null,null,null,null,null,null,null,null,13.5,6.5,0.85]
[null,null,null,null,null,null,null,null,null,null,null,null,null,null,null,null,16,8,0.15]
[null,null,null,null,null,null,null,null,null,null,null,null,null,null,null,null,null,"Total","14 kg"]

{"sheet":"ReferenceData","index":6,"n_rows":53,"n_cols":27,"rows_kept":53,"cut":false,"hidden":true,"merged":[]}
[null,null,null,null,null,null,null,null,null,null,null,null,null,null,null,null,null,null,"Transparent Thermoformed",5,"percent higher"]
[]
[null,null,null,{"$f":"AND(D6:D126)","v":{"$error":"#N/A"}},null,null,{"$f":"AND(G6:G120)","v":{"$error":"#N/A"}},null,null,{"$f":"AND(J6:J120)","v":{"$error":"#N/A"}}]
[null,"Dual",null,null,"Full Friction ",null,null,"Full Friction ",null,null,null,"surface",null,"ShippingYesNo",null,null,"Color of the grip part of the surface",null,"Color of the smooth part of the surface",null,null,null,null,null,null,null,"Color of the smooth part of the surface for thermoformed"]
[null,"Product ID","Description",null,"Product ID","Description",null,"Product ID","Description",null,null,"<choose surface>",null,"Yes",null,null,"<choose color>",null,"<choose color>",null,"Trickit name","Color","RAL Code","RAL Name","Hex Code (nearest match)",null,"<choose color>"]
[null,"FGDF001","Pressure S Dual\nSet of 3 fiberglass macros size S",{"$f":"VLOOKUP(ReferenceData!B6,EntryForm!$A$3:$C$177,3,FALSE)=ReferenceData!C6","v":true},null,null,null,null,null,null,null,"GLOSSY",null,"No",null,null,"White RAL 9016",null,"White RAL 9016",null,"Yellow RAL 1023",null,"RAL 1023","Traffic Yellow","#FAD201",null,"Transparent Thermoformed"]
[null,"FGDF002","Pressure M Dual\nSet of 3 fiberglass macros size М",{"$f":"VLOOKUP(ReferenceData!B7,EntryForm!$A$3:$C$177,3,FALSE)=ReferenceData!C7","v":true},null,null,null,null,null,null,null,"MATTE",null,null,null,null,"Black RAL 9005",null,"Black RAL 9005",null,"Orange RAL 2004",null,"RAL 2004","Pure Orange","#F44611",null,"White RAL 9016"]
[null,"FGDF003","Vacuum S Dual\nSet of 3 fiberglass macros size S",{"$f":"VLOOKUP(ReferenceData!B8,EntryForm!$A$3:$C$177,3,FALSE)=ReferenceData!C8","v":true},null,null,null,null,null,null,null,null,null,null,null,null,"Gray RAL 7001",null,"Gray RAL 7001",null,"Red RAL 3020",null,"RAL 3020","Traffic Red","#CC0605",null,"Black RAL 9005"]
[null,"FGDF004","Vacuum M Dual\nSet of 3 fiberglass macros size М",{"$f":"VLOOKUP(ReferenceData!B9,EntryForm!$A$3:$C$177,3,FALSE)=ReferenceData!C9","v":true},null,null,null,null,null,null,null,null,null,null,null,null,"Dark gray RAL 7011",null,"Dark gray RAL 7011",null,"Violet RAL 4008",null,"RAL 4008","Signal Violet","#924E7D",null,"Gray RAL 7001"]
[null,"FGDF005","Balance S Dual\nSet of 3 fiberglass macros size S",{"$f":"VLOOKUP(ReferenceData!B10,EntryForm!$A$3:$C$177,3,FALSE)=ReferenceData!C10","v":true},null,null,null,null,null,null,null,"surface-Narwhal",null,null,null,null,"Violet RAL 4008",null,"Violet RAL 4008",null,"Dark blue RAL 5005",null,"RAL 5005","Signal Blue","#1E2460",null,"Dark gray RAL 7011"]
[null,"FGDF006","Balance M Dual\nSet of 3 fiberglass macros size М",{"$f":"VLOOKUP(ReferenceData!B11,EntryForm!$A$3:$C$177,3,FALSE)=ReferenceData!C11","v":true},null,null,null,null,null,null,null,"<choose surface>",null,null,null,null,"Mint RAL 6027",null,"Mint RAL 6027",null,"Light blue RAL 5015",null,"RAL 5015","Sky Blue","#2271B3",null,"Violet RAL 4008"]
[null,"FGDF007","Orca Dual\nSet of 11 fiberglass holds  and macros different sizes",{"$f":"VLOOKUP(ReferenceData!B12,EntryForm!$A$3:$C$177,3,FALSE)=ReferenceData!C12","v":true},null,null,null,null,null,null,null,"MATTE",null,null,null,null,"Light blue RAL 5015",null,"Light blue RAL 5015",null,"Green RAL 6002",null,"RAL 6002","Leaf Green","#2D572C",null,"Mint RAL 6027"]
[null,"PUDF008","Narwhal PU Dual\nSet of 15 PU holds and macros different sizes ",{"$f":"VLOOKUP(ReferenceData!B13,EntryForm!$A$3:$C$177,3,FALSE)=ReferenceData!C13","v":true},null,null,null,null,null,null,null,null,null,null,null,null,"Dark blue RAL 5005",null,"Dark blue RAL 5005",null,"Light green RAL 6002",null,"RAL 6018","Yellow Green","#57A639",null,"Light blue RAL 5015"]
[null,"FGDF009","Entropy Dual\nSet of 3 fiberglass macros ",{"$f":"VLOOKUP(ReferenceData!B14,EntryForm!$A$3:$C$177,3,FALSE)=ReferenceData!C14","v":true},"FGFF009","Entropy Full Friction\nSet of 3 fiberglass macros ",{"$f":"VLOOKUP(ReferenceData!E14,EntryForm!$A$3:$C$177,3,FALSE)=ReferenceData!F14","v":true},null,null,null,null,null,null,null,null,null,"Light green RAL 6018",null,"Light green RAL 6018",null,"Mint RAL 6027",null,"RAL 6027","Light Green","#84C3BE",null,"Dark blue RAL 5005"]
[null,"FGDF010","Pulsar Dual\nSet of 3 fiberglass macros ",{"$f":"VLOOKUP(ReferenceData!B15,EntryForm!$A$3:$C$177,3,FALSE)=ReferenceData!C15","v":true},"FGFF010","Pulsar Full Friction\nSet of 3 fiberglass macros ",{"$f":"VLOOKUP(ReferenceData!E15,EntryForm!$A$3:$C$177,3,FALSE)=ReferenceData!F15","v":true},null,null,null,null,null,null,null,null,null,"Green RAL 6002",null,"Green RAL 6002",null,"Grey RAL 7001 ",null,"RAL 7001","Silver Gray","#8A9597",null,"Light green RAL 6018"]
[null,"FGDF011","Nebula Dual\nSet of 3 fiberglass macros ",{"$f":"VLOOKUP(ReferenceData!B16,EntryForm!$A$3:$C$177,3,FALSE)=ReferenceData!C16","v":true},"FGFF011","Nebula Full Friction\nSet of 3 fiberglass macros ",{"$f":"VLOOKUP(ReferenceData!E16,EntryForm!$A$3:$C$177,3,FALSE)=ReferenceData!F16","v":true},null,null,null,null,null,null,null,null,null,"Orange RAL 2004",null,"Orange RAL 2004",null,"Dark gray RAL 7011",null,"RAL 7011","Iron Gray","#434B4D",null,"Green RAL 6002"]
[null,"FGDF012","Quantium Dual\nSet of 3 fiberglass macros ",{"$f":"VLOOKUP(ReferenceData!B17,EntryForm!$A$3:$C$177,3,FALSE)=ReferenceData!C17","v":true},"FGFF012","Quantium Full Friction\nSet of 3 fiberglass macros ",{"$f":"VLOOKUP(ReferenceData!E17,EntryForm!$A$3:$C$177,3,FALSE)=ReferenceData!F17","v":true},null,null,null,null,null,null,null,null,null,"Red RAL 3020",null,"Red RAL 3020",null,"Black RAL 9005",null,"RAL 9005","Jet Black","#0A0A0A",null,"Orange RAL 2004"]
[null,"FGDF013","Axiom Dual\nSet of 3 fiberglass macros ",{"$f":"VLOOKUP(ReferenceData!B18,EntryForm!$A$3:$C$177,3,FALSE)=ReferenceData!C18","v":true},"FGFF013","Axiom Full Friction\nSet of 3 fiberglass macros ",{"$f":"VLOOKUP(ReferenceData!E18,EntryForm!$A$3:$C$177,3,FALSE)=ReferenceData!F18","v":true},null,null,null,null,null,null,null,null,null,"Yellow RAL 1023",null,"Yellow RAL 1023",null,"White RAL 9016",null,"RAL 9016","Traffic White","#F6F6F6",null,"Red RAL 3020"]
[null,"FGDF014","DISCONTINUED\nLeaves Dual\nSet of 3 fiberglass macros",null,"FGFF014","DISCONTINUED\nLeaves Full Friction\nSet of 3 fiberglass macros",null,null,null,null,null,null,null,null,null,null,null,null,null,null,null,null,null,null,null,null,"Yellow RAL 1023"]
[null,"FGDF015","Planet 1a L Dual\n Fiberglass macro size L",{"$f":"VLOOKUP(ReferenceData!B20,EntryForm!$A$3:$C$177,3,FALSE)=ReferenceData!C20","v":true}]
[null,"FGDF016","Planet 1b L Dual\n Fiberglass macro size L",{"$f":"VLOOKUP(ReferenceData!B21,EntryForm!$A$3:$C$177,3,FALSE)=ReferenceData!C21","v":true},null,null,null,null,null,null,null,null,null,null,null,null,null,null,"Color of the smooth part -Orca","<<for now we don't offer it in black"]
[null,"FGDF017","Planet 1 L Dual\nSet of 2 fiberglass macros:\n1a and 1b; size L",{"$f":"VLOOKUP(ReferenceData!B22,EntryForm!$A$3:$C$177,3,FALSE)=ReferenceData!C22","v":true},null,null,null,null,null,null,null,null,null,null,null,null,null,null,"<choose color>"]
[null,"FGDF018","Planet 2 L Dual\n Fiberglass macro size L",{"$f":"VLOOKUP(ReferenceData!B23,EntryForm!$A$3:$C$177,3,FALSE)=ReferenceData!C23","v":true},null,null,null,null,null,null,null,null,null,null,null,null,null,null,"White RAL 9016"]
[null,"FGDF019","Planet 3 L Dual\n Fiberglass macro size L",{"$f":"VLOOKUP(ReferenceData!B24,EntryForm!$A$3:$C$177,3,FALSE)=ReferenceData!C24","v":true},null,null,null,null,null,null,null,null,null,null,null,null,null,null,"Gray RAL 7001"]
[null,"FGDF020","Planet 4 L Dual\n Fiberglass macro size L",{"$f":"VLOOKUP(ReferenceData!B25,EntryForm!$A$3:$C$177,3,FALSE)=ReferenceData!C25","v":true},null,null,null,null,null,null,null,null,null,null,null,null,null,null,"Dark gray RAL 7011"]
[null,"FGDF021","Planet 5 L Dual\n Fiberglass macro size L",{"$f":"VLOOKUP(ReferenceData!B26,EntryForm!$A$3:$C$177,3,FALSE)=ReferenceData!C26","v":true},null,null,null,null,null,null,null,null,null,null,null,null,null,null,"Violet RAL 4008"]
[null,"FGDF022","Planet 6 L Dual\n Fiberglass macro size L",{"$f":"VLOOKUP(ReferenceData!B27,EntryForm!$A$3:$C$177,3,FALSE)=ReferenceData!C27","v":true},null,null,null,null,null,null,null,null,null,null,null,null,null,null,"Mint RAL 6027"]
[null,"FGDF023","Planet L (full set) Dual\nSet of 7 fiberglass macros size L-XL",{"$f":"VLOOKUP(ReferenceData!B28,EntryForm!$A$3:$C$177,3,FALSE)=ReferenceData!C28","v":true},null,null,null,null,null,null,null,null,null,null,null,null,null,null,"Light blue RAL 5015"]
[null,"FGDF024","Planet S (full set) Dual\nSet of 8 fiberglass macros size XS-S\n(not sold separately)",{"$f":"VLOOKUP(ReferenceData!B29,EntryForm!$A$3:$C$177,3,FALSE)=ReferenceData!C29","v":true},null,null,null,null,null,null,null,null,null,null,null,null,null,null,"Dark blue RAL 5005"]
[null,"FGDF025","Planet S&L (full set) Dual\nSet of 15 fiberglass macros size XS-XL",{"$f":"VLOOKUP(ReferenceData!B30,EntryForm!$A$3:$C$177,3,FALSE)=ReferenceData!C30","v":true},null,null,null,null,null,null,null,null,null,null,null,null,null,null,"Light green RAL 6018"]
[null,"FGDF026","Leaves Dual\nSet of 21 fiberglass macros size XXS-XL",{"$f":"VLOOKUP(ReferenceData!B31,EntryForm!$A$3:$C$177,3,FALSE)=ReferenceData!C31","v":false},"FGFF026","Leaves Full Friction\nSet of 21 fiberglass macros size XXS-XL",{"$f":"VLOOKUP(ReferenceData!E31,EntryForm!$A$3:$C$177,3,FALSE)=ReferenceData!F31","v":true},null,null,null,null,null,null,null,null,null,null,null,"Green RAL 6002"]
[null,"FGDF027","Gambit (full set) Dual\nSet of 15 fiberglass macros size S-M",{"$f":"VLOOKUP(ReferenceData!B32,EntryForm!$A$3:$C$177,3,FALSE)=ReferenceData!C32","v":true},null,null,null,null,null,null,null,null,null,null,null,null,null,null,"Orange RAL 2004"]
[null,"FGDF028","Gambit h=4 Dual\nSet of 5 fiberglass macros size S-M; h=4cm",{"$f":"VLOOKUP(ReferenceData!B33,EntryForm!$A$3:$C$177,3,FALSE)=ReferenceData!C33","v":true},null,null,null,null,null,null,null,null,null,null,null,null,null,null,"Red RAL 3020"]
[null,"FGDF029","Gambit h=7 Dual\nSet of 5 fiberglass macros size S-M; h=7cm",{"$f":"VLOOKUP(ReferenceData!B34,EntryForm!$A$3:$C$177,3,FALSE)=ReferenceData!C34","v":true},null,null,null,null,null,null,null,null,null,null,null,null,null,null,"Yellow RAL 1023"]
[null,"FGDF030","Gambit h=12 Dual\nSet of 5 fiberglass macros size S-M; h=12cm",{"$f":"VLOOKUP(ReferenceData!B35,EntryForm!$A$3:$C$177,3,FALSE)=ReferenceData!C35","v":true}]
[null,"TFDF031","Ventus Dual\nSet of 6 thermoformed macros size S-L",{"$f":"VLOOKUP(ReferenceData!B36,EntryForm!$A$3:$C$177,3,FALSE)=ReferenceData!C36","v":true}]
[null,"TFDF032","DISCONTINUED\nCumulus Dual\nSet of 5 thermoformed macros size M-XL"]
[null,"FGDF033","Sahara XL Dual NEW!\nSet of 2 fiberglass macros size XL",{"$f":"VLOOKUP(ReferenceData!B38,EntryForm!$A$3:$C$177,3,FALSE)=ReferenceData!C38","v":true},"FGFF033","Sahara XL Full Friction NEW!\nSet of 2 fiberglass macros size XL",{"$f":"VLOOKUP(ReferenceData!E38,EntryForm!$A$3:$C$177,3,FALSE)=ReferenceData!F38","v":true}]
[null,"FGDF034","Sahara L Dual NEW!\nSet of 4 fiberglass macros size L",{"$f":"VLOOKUP(ReferenceData!B39,EntryForm!$A$3:$C$177,3,FALSE)=ReferenceData!C39","v":true},"FGFF034","Sahara L Full Friction NEW!\nSet of 4 fiberglass macros size L",{"$f":"VLOOKUP(ReferenceData!E39,EntryForm!$A$3:$C$177,3,FALSE)=ReferenceData!F39","v":true}]
[null,"FGDF035","Sahara M Dual NEW!\nSet of 6 fiberglass macros size M",{"$f":"VLOOKUP(ReferenceData!B40,EntryForm!$A$3:$C$177,3,FALSE)=ReferenceData!C40","v":true},"FGFF035","Sahara M Full Friction NEW!\nSet of 6 fiberglass macros size M",{"$f":"VLOOKUP(ReferenceData!E40,EntryForm!$A$3:$C$177,3,FALSE)=ReferenceData!F40","v":true}]
[null,"FGDF036","Sahara S Dual NEW!\nSet of 8 fiberglass macros size S",{"$f":"VLOOKUP(ReferenceData!B41,EntryForm!$A$3:$C$177,3,FALSE)=ReferenceData!C41","v":true},"FGFF036","Sahara S Full Friction NEW!\nSet of 8 fiberglass macros size S",{"$f":"VLOOKUP(ReferenceData!E41,EntryForm!$A$3:$C$177,3,FALSE)=ReferenceData!F41","v":true}]
[null,"FGDF037","Sahara XS Dual NEW!\nSet of 10 fiberglass macros size XS",{"$f":"VLOOKUP(ReferenceData!B42,EntryForm!$A$3:$C$177,3,FALSE)=ReferenceData!C42","v":true},"FGFF037","Sahara XS Full Friction NEW!\nSet of 10 fiberglass macros size XS",{"$f":"VLOOKUP(ReferenceData!E42,EntryForm!$A$3:$C$177,3,FALSE)=ReferenceData!F42","v":true}]
[null,"FGDF038","Sahara set Dual NEW!\nSet of 30 fiberglass macros size XS-XL",{"$f":"VLOOKUP(ReferenceData!B43,EntryForm!$A$3:$C$177,3,FALSE)=ReferenceData!C43","v":{"$error":"#N/A"}},"FGFF038","Sahara set Full Friction NEW!\nSet of 30 fiberglass macros size XS-XL",{"$f":"VLOOKUP(ReferenceData!E43,EntryForm!$A$3:$C$177,3,FALSE)=ReferenceData!F43","v":{"$error":"#N/A"}}]
[null,"TFDF039","Atacama Dual NEW!\nSet of 4 thermoformed macros",{"$f":"VLOOKUP(ReferenceData!B44,EntryForm!$A$3:$C$177,3,FALSE)=ReferenceData!C44","v":true},"TFFF039","Atacama Full Friction NEW!\nSet of 4 thermoformed macros",{"$f":"VLOOKUP(ReferenceData!E44,EntryForm!$A$3:$C$177,3,FALSE)=ReferenceData!F44","v":true}]
[null,"TFDF040","Gobi Dual NEW!\nSet of 4 thermoformed macros",{"$f":"VLOOKUP(ReferenceData!B45,EntryForm!$A$3:$C$177,3,FALSE)=ReferenceData!C45","v":true},"TFFF040","Gobi Full Friction NEW!\nSet of 4 thermoformed macros",{"$f":"VLOOKUP(ReferenceData!E45,EntryForm!$A$3:$C$177,3,FALSE)=ReferenceData!F45","v":true}]
[null,"TFDF041","Namib Dual NEW!\nSet of 4 thermoformed macros",{"$f":"VLOOKUP(ReferenceData!B46,EntryForm!$A$3:$C$177,3,FALSE)=ReferenceData!C46","v":true},"TFFF041","Namib Full Friction NEW!\nSet of 4 thermoformed macros",{"$f":"VLOOKUP(ReferenceData!E46,EntryForm!$A$3:$C$177,3,FALSE)=ReferenceData!F46","v":true}]
[null,"TFDF042","Mojave Dual NEW!\nSet of 4 thermoformed macros",{"$f":"VLOOKUP(ReferenceData!B47,EntryForm!$A$3:$C$177,3,FALSE)=ReferenceData!C47","v":true},"TFFF042","Mojave Full Friction NEW!\nSet of 4 thermoformed macros",{"$f":"VLOOKUP(ReferenceData!E47,EntryForm!$A$3:$C$177,3,FALSE)=ReferenceData!F47","v":true}]
[null,"TFDF043","Atacama S Dual NEW!\nSet of 4 thermoformed macros",{"$f":"VLOOKUP(ReferenceData!B48,EntryForm!$A$3:$C$177,3,FALSE)=ReferenceData!C48","v":true},"TFFF043","Atacama S Full Friction NEW!\nSet of 4 thermoformed macros",{"$f":"VLOOKUP(ReferenceData!E48,EntryForm!$A$3:$C$177,3,FALSE)=ReferenceData!F48","v":true}]
[null,"TFDF044","Gobi S Dual NEW!\nSet of 4 thermoformed macros",{"$f":"VLOOKUP(ReferenceData!B49,EntryForm!$A$3:$C$177,3,FALSE)=ReferenceData!C49","v":true},"TFFF044","Gobi S Full Friction NEW!\nSet of 4 thermoformed macros",{"$f":"VLOOKUP(ReferenceData!E49,EntryForm!$A$3:$C$177,3,FALSE)=ReferenceData!F49","v":true}]
[null,"TFDF045","Namib S Dual NEW!\nSet of 4 thermoformed macros",{"$f":"VLOOKUP(ReferenceData!B50,EntryForm!$A$3:$C$177,3,FALSE)=ReferenceData!C50","v":true},"TFFF045","Namib S Full Friction NEW!\nSet of 4 thermoformed macros",{"$f":"VLOOKUP(ReferenceData!E50,EntryForm!$A$3:$C$177,3,FALSE)=ReferenceData!F50","v":true}]
[null,"TFDF046","Mojave S Dual NEW!\nSet of 4 thermoformed macros",{"$f":"VLOOKUP(ReferenceData!B51,EntryForm!$A$3:$C$177,3,FALSE)=ReferenceData!C51","v":true},"TFFF046","Mojave S Full Friction NEW!\nSet of 4 thermoformed macros",{"$f":"VLOOKUP(ReferenceData!E51,EntryForm!$A$3:$C$177,3,FALSE)=ReferenceData!F51","v":true}]
[null,"FGDF047","Planet S Drops Dual NEW!\nSet of 8 fiberglass holds size S",{"$f":"VLOOKUP(ReferenceData!B52,EntryForm!$A$3:$C$177,3,FALSE)=ReferenceData!C52","v":{"$error":"#N/A"}}]
[null,null,null,null,null,null,null,"PEDF048","Downholds NEW!\nSet of 4 PE holds",{"$f":"VLOOKUP(ReferenceData!H53,EntryForm!$A$3:$C$177,3,FALSE)=ReferenceData!I53","v":{"$error":"#N/A"}}]